{"text_format":"1","workbook":"xlsx","n_sheets":9,"sheets":["Instructivo","DEMANDA ANUAL","VOLUMEN DE QUEJAS","COSTO ADMINISTRACIÓN PÚBLICA","RESUMEN DE COSTOS AP","AUXILIAR COSTO ADMINISTRACIÓN","TIEMPO DE RESPUESTA","CANAL ATENCIÓN","RESUMEN"],"not_rendered":{"charts":0,"images":7,"macros":1,"external_links":0,"defined_names":7,"comments":5,"pivot_tables":0},"unopened":[],"bounds":{"document_bytes":16777216,"sheet_cells":100000,"rows_first":2000,"rows_last":500,"rows_between":2000,"halvings":0,"cell_chars":16384,"cell_head_chars":4096},"cells_cut":0,"cells_raw":0,"read":"whole","date_system":"1900"}

{"sheet":"Instructivo","index":0,"n_rows":70,"n_cols":1,"rows_kept":70,"cut":false,"hidden":false,"merged":[]}
["CRITERIO DE PRIORIZACIÓN DE TRÁMITES ADMINISTRATIVOS"]
["Instructivo"]
["Consideraciones generales"]
[]
["En las hojas “COSTO DE ADMINISTRACIÓN PÚBLICA”y “RESUMEN”  para añadir más trámites y que apliquen las fórmulas, se deberá seleccionar la primera fila y copiarla una por cada trámite de la entidad"]
[]
["Todas las hojas tienen columnas de color celeste, en las cuales NO deben ingresar valores ya que contienen fórmulas."]
["Para la carga en GOB.EC. La institución debe recordar que el peso máximo del archivo es de 2 MB."]
["Esquema de puntuación"]
["Para priorizar un trámite, se realizará un análisis de criterios básicos y adicionales basado en información que disponen las instituciones sujetas a esta norma técnica. Cada criterio será puntuado según los lineamientos presentes en esta norma."]
["a) Demanda Anual"]
["Considerará el volumen o frecuencia de las solicitudes que ingresan al año a cada institución para la gestión de un trámite en particular."]
["La identificación del volumen anual de los trámites se realizará a través de sus registros de transacciones y/o el número de visitas de consulta de información realizadas a través de páginas web institucionales."]
["Para realizar el registro realice lo siguiente:"]
["1.- Seleccione la hoja DEMANDA ANUAL"]
["2.- Ingrese los trámites de la institución registrando el identificador y nombre en las columnas respectivas.  "]
["3.- Para cada trámite debe especificar en la columna DEMANDA ANUAL el volumen o frecuencia anual, de acuerdo a lo mencionado anteriormente."]
["4.- Una vez terminado el llenado solicitado presione el botón PUNTUACIÓN, se ordenara de menor a mayor. "]
["5.- Usted visualizará el ordenamiento de los trámites ingresados de acuerdo al número de  volumen o frecuencia anual."]
["6.- Así mismo, usted visualizará el puntaje obtenido en la columna PUNTUACIÓN de acuerdo al grupo obtenido por cada trámite de acuerdo al número de volumen o frecuencia anual cosiderando lo siguiente: ** Primer grupo (trámites con menor demanda no incluye los trámites con demanda 0 ) = 3\n** Segundo grupo (trámites con demanda intermedia) = 6\n** Tercer grupo (trámites con mayor demanda) = 10"]
["Cada vez que requiera actualizar el puntaje presionando el botón puntuación, debe verificar que la celda de la columna puntaje se encuentren vacías, es decir, se debe borrar cualquier valor de puntaje obtenido previamente."]
["b) Volumen de quejas asociadas a un trámite: "]
["Considerará la cantidad de quejas recibidas en relación a un trámite durante un año. Estas quejas deberán estar documentadas en medios físicos y/o digitales."]
["Para determinar la puntuación, se colocará en una tabla todos los trámites con sus correspondientes quejas ordenándose de menor a mayor. Se dividirá en 2 partes en los que cada grupo contenga la misma cantidad de trámites."]
["Para realizar el registro realice lo siguiente:"]
["1.- Seleccione la hoja VOLUMEN DE QUEJAS"]
["2.- Ingrese los trámites de la institución registrando el identificador y nombre en las columnas respectivas.  Si usted requiere de acuerdo al número de trámites copie filas adicionales que estén dentro del cuadro"]
["3.- Para cada trámite debe especificar en la columna VOLUMEN QUEJAS el número de quejas anual, de acuerdo a lo mencionado anteriormente."]
["4.- Una vez terminado el llenado solicitado presione el botón PUNTUACIÓN."]
["5.- Usted visualizará el ordenamiento de los trámites ingresados de acuerdo al número de  volumen o frecuencia anual."]
["6.- Así mismo, usted visualizará el puntaje obtenido en la columna PUNTUACIÓN de acuerdo al grupo obtenido por cada trámite de acuerdo al número de volumen o frecuencia anual cosiderando lo siguiente: La puntuación se basará en los siguientes grupos:\n** Primer grupo (trámites con menor cantidad de quejas, no incluye los trámites con queja 0 ) = 4\n** Segundo grupo (trámites con mayor porcentaje de quejas) = 10"]
["El valor del volumen de quejas no debe ser superior al valor del volumen de la demana, no le permitirá registrar un valor."]
["c) Costo para la administración pública: "]
["En cada trámite, basado en un caso estándar, se deberá estimar el costo incurrido en el costo de personal y recursos necesarios para su atención desde que el administrado entregó todos los requisitos hasta que la institución entregue el producto, respuesta o servicio requerido en el trámite. Se considerará:"]
["• Costo de personal:"]
["Costo del personal para atender el trámite, se excluyen actividades realizadas automáticamente o que dependen del administrado. El tiempo deberá considerar únicamente el tiempo efectivo de trabajo del personal, no debe considerar el tiempo de espera o de movimiento."]
["• Costo de recursos:"]
["Se deberá considerar el costo directo en el que la institución debe incurrir para atender un trámite. Se debe considerar los insumos o materia prima necesaria u cualquier otro que la institución considere pertinente."]
["Para realizar el registro realice lo siguiente:"]
["1.- Seleccione la hoja COSTO ADMINISTRACIÓN PÚBLICA"]
["2.- Ingrese los trámites de la institución registrando el identificador y nombre en las columnas respectivas.  Si usted requiere de acuerdo al número de trámites copie filas adicionales que estén dentro del cuadro"]
["3.- Para calcular el tiempo de las actividades, utilizar la hoja AUXILIAR COSTO ADMINISTRACIÓN donde deberá listar todas las actividades que realiza la institución en un caso estándar y asignar el tiempo mínimo que toma cada actvidad (en horas). El tiempo total de las actividades, deberá ingresar en la correspondiente celda de la hoja COSTO ADMINISTRACIÓN PÚBLICA"]
["4.- En función de la información registrada en el paso 3, la matriz entregará el costo del personal"]
["5.- Completar la columna \"Costo recursos\", en la cual ingresará el costo directo en el que incurre la institución para entregar el trámite. En este valor se considerarán los valores correspondientes a insumos y/o materia prima mínimos que se invierten por cada trámite (no se considera mano de obra)"]
["6.- La columna \"Costo para la adm. pública\" mostrará el costto de este criterio para cada trámite"]
["7,- Para que la fórmula funcione debe arrastrar hacia abajo al último de los támites ingresados, no copiar"]
["7.- Una vez que disponga del Costo para la administración pública, presionar el botón \"GENERAR\"."]
["8. Visualizar la hoja “RESUMEN DE COSTO AP” en la que va a encontrar copiada las celdas necesarias para el ordenamiento y puntuación de las mismas al presionar el botón “PUNTUACIÓN”"]
[]
["d) Tiempo de respuesta: "]
["Considerará los tiempos que a las instituciones les toma dar respuesta a un trámite desde que reciben la solicitud del administrado hasta la finalización del mismo. Para la definición del tiempo se considerará un caso estándar."]
["Para determinar la puntuación, se colocará en una tabla todos los trámites con el tiempo de respuesta, ordenándose de menor a mayor. Se dividirá en 4 grupos, en los que cada uno contenga la misma cantidad de trámites."]
["Para realizar el registro realice lo siguiente:"]
["1.- Seleccione la hoja TIEMPO DE RESPUESTA"]
["2.- Ingrese los trámites de la institución registrando el identificador y nombre en las columnas respectivas.  Si usted requiere de acuerdo al número de trámites copie filas adicionales que estén dentro del cuadro"]
["3.- Para cada trámite debe especificar en la columna TIEMPO RESPUESTA el tiempo, de acuerdo a lo mencionado anteriormente."]
["4.- Una vez terminado el llenado solicitado presione el botón PUNTUACIÓN."]
["5.- Usted visualizará el ordenamiento de los trámites ingresados de acuerdo al número de  volumen o frecuencia anual."]
["6.- Así mismo, usted visualizará el puntaje obtenido en la columna PUNTUACIÓN de acuerdo al grupo obtenido por cada trámite de acuerdo al número de volumen o frecuencia anual cosiderando lo siguiente:  La puntuación considera lo siguiente:\n** Primer grupo (menor o igual a 40 horas laboralres) = 0\n** Segundo grupo mayor  40 horas laboralres) = 30"]
["e) Canal de atención: "]
["Considerará los canales de atención a través de los cuales el administrado puede iniciar el trámite."]
["Para realizar el registro realice lo siguiente:"]
["1.- Seleccione la hoja CANAL ATENCIÓN"]
["2.- Ingrese los trámites de la institución registrando el identificador y nombre en las columnas respectivas.  Si usted requiere de acuerdo al número de trámites copie filas adicionales que estén dentro del cuadro"]
["3.- Para cada trámite debe seleccionar el canal de atención del trámite en la columna CANAL ATENCIÓN, que pueden ser: \nEl trámite se puede completar totalmente en línea: Se considera trámite totalmente en línea cuando el administrado no requiere realizar ninguna interacción presencial con la institución = 0\nEl trámite no se puede completar totalmente en línea: Se considera este caso, cuando el trámite incluye al menos una actividad, incluido mecanismos de pago, en la que el administrado deba acudir presencialmente a la institución, para la realización de dicho trámite. Los trámites presenciales se consideran dentro de esta categoría = 10"]
["4.- De acuerdo a la selección usted obtendrá la puntuación del trámite que se visualizará en la columna PUNTUACIÓN."]
[]
["f) Resumen"]
["En esta hoja deberá consolidar todas las puntuaciones obtenidas para cada trámite en los criterios a) hasta e). Adicionalmente deberá analizar los criterios adicionales que dispone la norma técnica, para estos últimos solamente deberá seleccionar en la celda correspondiente y la matriz asignará la puntuación adicional. Los criterios que deberá considerar son:\n- NECESIDADES CIUDADANAS: Si la institución ha implementado mecanismos para identificar necesidades ciudadanas respecto al trámite, seleccionar \"SI\", caso contrario, seleccionar \"NO\"\n- SUSCEPTIBILIDAD A CORRUPCIÓN: Si la institución dispone de información documentada sobre presuntos actos de corrupción, seleccionar \"SI\", caso contrario, seleccionar \"NO\"\n- VOLUMEN DE DEVOLUCIONES: Si la institución posee documentación sobre devoluciones del trámite en una cantidad significativa, seleccionar \"SI\", caso contrario, seleccionar \"NO\"\nPara que funcione la lista depelgable debe arrastrar la lista y la puntuación hacia abajo al último de los támites ingresados, no copiar"]
["En la columna puntaje total se realizará la sumatoria de los valores de los criterios básicos y adicionales. Este valor deberá registrarse en la plataforma GOB.EC"]

{"sheet":"DEMANDA ANUAL","index":1,"n_rows":83,"n_cols":4,"rows_kept":83,"cut":false,"hidden":false,"merged":[[0,0,0,3],[1,0,1,3]]}
["PRIORIZACIÓN DE TRÁMITES ADMINISTRATIVOS"]
["DEMANDA ANUAL"]
[]
["IDENTIFICADOR","TRÁMITE","DEMANDA ANUAL","PUNTAJE"]
["SENESCYT-012-01-04","Categorización como Investigador Agregado 3",0,0]
["SENESCYT-017-01-01","Postulación de proyectos innovadores y la asignación de capital semilla",0,0]
["SENESCYT-023-01-01","Inscripción para el acceso a la nivelación general",0,0]
["SENESCYT-035-01-05","Autorización de prórroga de plazo para ejecución de proyecto para beneficiarios de becas",0,0]
["SENESCYT-040-01-02","Aprobación resolución de actualización de datos de la persona beneficiaria de crédito educativo",0,0]
["SENESCYT-045-02-01","Atención a la solicitud de apelación al resultado de la postulación de becas nacionales e internacionales",0,0]
["SENESCYT-012-01-01","Categorización como Investigador Principal 4",1,3]
["SENESCYT-012-01-02","Categorización como Investigador Principal 3",1,3]
["SENESCYT-012-01-03","Categorización como Investigador Principal 2",1,3]
["SENESCYT-012-01-09","Categorización como Investigador Principal 1",1,3]
["SENESCYT-024-01-01","Emisión de títulos de formación técnica y tecnológica de instituciones públicas o particulares",1,3]
["SENESCYT-035-01-02","Autorización de cambio o liberación de la entidad auspiciante de becas internacionales",1,3]
["SENESCYT-040-01-01","Otorgamiento de prórroga académica por crédito educativo",2,3]
["SENESCYT-044-01-03","Aprobación de resolución a la solicitud de renuncia a la beca educativa (contrato suscrito sin desembolsos)",2,3]
["SENESCYT-019-01-01","Registro de espacios de trabajo colaborativo",3,3]
["SENESCYT-001-01-01","Registro de carreras y programas en estado no vigente y de cuarto nivel",4,3]
["SENESCYT-006-01-01","Modificación de datos de carreras y programas de estudio",5,3]
["SENESCYT-004-01-02","Modificación del nivel de formación de los títulos de tecnólogos médicos al tercer nivel y de doctores al cuarto nivel",6,3]
["SENESCYT-007-01-01","Exoneración de derechos aduaneros para instituciones de educación superior",6,3]
["SENESCYT-005-02-01","Anulaciones de registro de títulos del extranjero",8,3]
["SENESCYT-008-01-01","Evaluación de IES extranjeras para inclusión o exclusión en el listado",8,3]
["SENESCYT-004-02-01","Modificación de registro de títulos extranjero para PhD",10,3]
["SENESCYT-040-01-03","Aprobación resolución de suspensión de desembolsos de crédito educativo",10,3]
["SENESCYT-034-01-02","Aprobación de facilidades de pago a valores adeudados para beneficiarios de becas educativas",11,3]
["SENESCYT-044-02-04","Aprobación resolución a la solicitud de suspensión temporal de estudios para beneficiarios de becas ",11,3]
["SENESCYT-044-01-02","Autorización de cambio de condiciones contractuales antes de la firma de beca ",12,3]
["SENESCYT-004-01-01","Modificación de registro de títulos nacionales de Instituciones de Educación Superior cerradas",13,3]
["SENESCYT-044-02-03","Aprobación resolución a la solicitud de terminación de contrato de becas",13,3]
["SENESCYT-044-02-02","Aprobación resolución de reactivación de beca educativa",15,3]
["SENESCYT-021-01-03","Certificado de pertenencia al grupo de alto rendimiento (GAR) programa internacional",18,3]
["SENESCYT-035-01-04","Autorización de cambio de período de compensación y otros tipos de compensación para beneficiarios de becas educativas ",21,6]
["SENESCYT-025-01-02","Actualización de datos generales para el registro de firmas de las autoridades de las Instituciones de Educación Superior.",24,6]
["SENESCYT-018-01-01","Acreditación de espacios y agentes de innovación",25,6]
["SENESCYT-012-01-07","Categorización como Investigador Auxiliar 2",26,6]
["SENESCYT-039-01-01","Aprobación de desembolso, reembolso o adelanto de desembolso  de crédito educativo ",30,6]
["SENESCYT-040-01-04","Aprobación resolución de terminación del contrato de crédito educativo ",30,6]
["SENESCYT-044-02-01","Autorización de prórroga de plazo de estudios para beneficiarios de becas educativas",31,6]
["SENESCYT-012-01-05","Categorización como Investigador Agregado 2",34,6]
["SENESCYT-014-01-02","Actualización de información de la publicación Latindex",34,6]
["SENESCYT-012-01-06","Categorización como Investigador Agregado 1",36,6]
["SENESCYT-025-01-01","Creación de credenciales para Instituciones de Educación Superior (IES)",36,6]
["SENESCYT-004-02-02","Modificación de registro de títulos extranjero de títulos propios",38,6]
["SENESCYT-013-01-02","Actualización de información del código ISSN",40,6]
["SENESCYT-005-01-01","Anulaciones de registro de títulos nacionales",49,6]
["SENESCYT-027-01-01","Registro de Redes del Sistema de Educación Superior y del Sistema Nacional de Ciencia, Tecnología, Innovación y Saberes Ancestrales",54,6]
["SENESCYT-044-01-01","Aprobación de cambio de condiciones contractuales  de beca nacional o internacional",58,6]
["SENESCYT-010-02-01","Registro de empresas públicas y privadas en la plataforma de transferencia del conocimiento \"Ensamble\"",65,6]
["SENESCYT-014-01-01","Evaluación o revaluación Latindex para publicaciones científicas",73,6]
["SENESCYT-004-02-03","Modificación de registro de títulos extranjero de campos de información académica general",78,6]
["SENESCYT-035-01-03","Autorización de diferimiento del período de compensación de becas",79,6]
["SENESCYT-012-01-08","Categorización como Investigador Auxiliar 1",92,6]
["SENESCYT-026-01-01","Atención de solicitudes de acceso a la información pública referente a la educación superior, la ciencia, tecnología e innovación",93,6]
["SENESCYT-001-02-01","Registro de títulos históricos",107,6]
["SENESCYT-013-01-01","Asignación del código ISSN (International Standard Serial Number)",123,6]
["SENESCYT-010-01-01","Vinculación de becarios a la plataforma de transferencia del conocimiento \"Ensamble\"",124,10]
["SENESCYT-028-01-01","Registro de personas naturales relacionadas a la investigación y/o desarrollo tecnológico",182,10]
["SENESCYT-034-01-01","Aprobación de liquidación de becas nacionales e internacionales",236,10]
["SENESCYT-011-01-01","Acreditación de investigadores/as científicos/as",337,10]
["SENESCYT-024-01-02","Certificado de títulos en proceso de emisión de formación técnica y tecnológica de instituciones públicas o particulares",362,10]
["SENESCYT-041-01-01","Aprobación de legalización de contrato de becas nacionales e internacionales",413,10]
["SENESCYT-002-01-03","Reconocimiento de títulos doctorales del extrajero (PhD.)",419,10]
["SENESCYT-036-01-01","Aprobación de facilidades de pago en etapa coactiva",471,10]
["SENESCYT-038-01-01","Emisión de reportes académicos de crédito educativo",492,10]
["SENESCYT-037-01-01","Emisión de certificados relacionados con crédito educativo",511,10]
["SENESCYT-004-02-04","Modificación de registro de títulos extranjero de campos de información personal",678,10]
["SENESCYT-045-01-01","Emisión de certificado de ser beneficiario de becas nacionales e internacionales",981,10]
["SENESCYT-009-01-01","Hojas de vida de becarios para procesos de selección",994,10]
["SENESCYT-002-01-02","Reconocimiento de títulos profesionales o grados académicos en el campo de la salud",1320,10]
["SENESCYT-035-01-01","Autorización de registro de compensación becas internacionales y administración becas otorgadas por el ministerio de salud pública",1383,10]
["SENESCYT-042-01-01","Aprobación de postulación a becas nacionales e internacionales",1554,10]
["SENESCYT-037-01-02","Otorgamiento de información académica de crédito educativo ",2633,10]
["SENESCYT-043-01-01","Autorización de desembolso de becas nacionales e internacionales a partir de segundo pago",3166,10]
["SENESCYT-002-01-01","Reconocimiento general de títulos del extranjero",8022,10]
["SENESCYT-022-01-01","Habilitación de cuenta en plataforma \"Ser Bachiller\"",31992,10]
["SENESCYT-003-01-01","Certificación de acreditación de las instituciones de educación superior nacionales",40451,10]
["SENESCYT-022-01-02","Habilitación de nota en plataforma \"Ser Bachiller\"",71443,10]
["SENESCYT-021-01-02","Certificado de haber aceptado o no haber aceptado un cupo en el Sistema Nacional de Nivelación y Admisión",215222,10]
["SENESCYT-020-01-01","Obtención de cupos para el acceso a la educación superior para ecuatorianos residentes y no residentes en el país y para extranjeros residentes en el país",218302,10]
["SENESCYT-021-01-01","Certificado de notas obtenidas en el examen para el acceso a la educación superior",630753,10]

{"sheet":"VOLUMEN DE QUEJAS","index":2,"n_rows":83,"n_cols":6,"rows_kept":83,"cut":false,"hidden":false,"merged":[[0,0,0,5],[1,0,1,5]]}
["PRIORIZACIÓN DE TRÁMITES ADMINISTRATIVOS"]
["VOLUMEN DE QUEJAS"]
[]
["IDENTIFICADOR","TRÁMITE","VOLUMEN DEMANDA","VOLUMEN DE QUEJAS","PORCENTAJE","PUNTUACIÓN"]
["SENESCYT-001-01-01","Registro de carreras y programas en estado no vigente y de cuarto nivel",4,0,{"$f":"(D5/C5)*100","v":0},0]
["SENESCYT-004-02-01","Modificación de registro de títulos extranjero para PhD",10,0,0,0]
["SENESCYT-004-02-02","Modificación de registro de títulos extranjero de títulos propios",38,0,0,0]
["SENESCYT-005-02-01","Anulaciones de registro de títulos del extranjero",8,0,0,0]
["SENESCYT-007-01-01","Exoneración de derechos aduaneros para instituciones de educación superior",6,0,0,0]
["SENESCYT-010-01-01","Vinculación de becarios a la plataforma de transferencia del conocimiento \"Ensamble\"",124,0,0,0]
["SENESCYT-010-02-01","Registro de empresas públicas y privadas en la plataforma de transferencia del conocimiento \"Ensamble\"",65,0,0,0]
["SENESCYT-012-01-01","Categorización como Investigador Principal 4",1,0,0,0]
["SENESCYT-012-01-02","Categorización como Investigador Principal 3",1,0,0,0]
["SENESCYT-012-01-03","Categorización como Investigador Principal 2",1,0,0,0]
["SENESCYT-012-01-04","Categorización como Investigador Agregado 3",0,0,0,0]
["SENESCYT-012-01-05","Categorización como Investigador Agregado 2",34,0,{"$f":"(D16/C16)*100","v":0},0]
["SENESCYT-012-01-06","Categorización como Investigador Agregado 1",36,0,0,0]
["SENESCYT-012-01-07","Categorización como Investigador Auxiliar 2",26,0,0,0]
["SENESCYT-012-01-08","Categorización como Investigador Auxiliar 1",92,0,0,0]
["SENESCYT-012-01-09","Categorización como Investigador Principal 1",1,0,0,0]
["SENESCYT-013-01-01","Asignación del código ISSN (International Standard Serial Number)",123,0,0,0]
["SENESCYT-013-01-02","Actualización de información del código ISSN",40,0,0,0]
["SENESCYT-014-01-01","Evaluación o revaluación Latindex para publicaciones científicas",73,0,0,0]
["SENESCYT-014-01-02","Actualización de información de la publicación Latindex",34,0,0,0]
["SENESCYT-017-01-01","Postulación de proyectos innovadores y la asignación de capital semilla",0,0,0,0]
["SENESCYT-019-01-01","Registro de espacios de trabajo colaborativo",3,0,{"$f":"(D26/C26)*100","v":0},0]
["SENESCYT-021-01-03","Certificado de pertenencia al grupo de alto rendimiento (GAR) programa internacional",18,0,{"$f":"(D27/C27)*100","v":0},0]
["SENESCYT-023-01-01","Inscripción para el acceso a la nivelación general",0,0,0,0]
["SENESCYT-024-01-02","Certificado de títulos en proceso de emisión de formación técnica y tecnológica de instituciones públicas o particulares",362,0,{"$f":"(D29/C29)*100","v":0},0]
["SENESCYT-025-01-01","Creación de credenciales para Instituciones de Educación Superior (IES)",36,0,0,0]
["SENESCYT-025-01-02","Actualización de datos generales para el registro de firmas de las autoridades de las Instituciones de Educación Superior.",24,0,0,0]
["SENESCYT-027-01-01","Registro de Redes del Sistema de Educación Superior y del Sistema Nacional de Ciencia, Tecnología, Innovación y Saberes Ancestrales",54,0,0,0]
["SENESCYT-028-01-01","Registro de personas naturales relacionadas a la investigación y/o desarrollo tecnológico",182,0,0,0]
["SENESCYT-035-01-01","Autorización de registro de compensación becas internacionales y administración becas otorgadas por el ministerio de salud pública",1383,0,0,0]
["SENESCYT-035-01-02","Autorización de cambio o liberación de la entidad auspiciante de becas internacionales",1,0,0,0]
["SENESCYT-035-01-03","Autorización de diferimiento del período de compensación de becas",79,0,0,0]
["SENESCYT-035-01-04","Autorización de cambio de período de compensación y otros tipos de compensación para beneficiarios de becas educativas ",21,0,0,0]
["SENESCYT-035-01-05","Autorización de prórroga de plazo para ejecución de proyecto para beneficiarios de becas",0,0,0,0]
["SENESCYT-036-01-01","Aprobación de facilidades de pago en etapa coactiva",471,0,{"$f":"(D39/C39)*100","v":0},0]
["SENESCYT-037-01-01","Emisión de certificados relacionados con crédito educativo",511,0,{"$f":"(D40/C40)*100","v":0},0]
["SENESCYT-037-01-02","Otorgamiento de información académica de crédito educativo ",2633,0,{"$f":"(D41/C41)*100","v":0},0]
["SENESCYT-038-01-01","Emisión de reportes académicos de crédito educativo",492,0,{"$f":"(D42/C42)*100","v":0},0]
["SENESCYT-040-01-01","Otorgamiento de prórroga académica por crédito educativo",2,0,{"$f":"(D43/C43)*100","v":0},0]
["SENESCYT-040-01-02","Aprobación resolución de actualización de datos de la persona beneficiaria de crédito educativo",0,0,0,0]
["SENESCYT-040-01-03","Aprobación resolución de suspensión de desembolsos de crédito educativo",10,0,{"$f":"(D45/C45)*100","v":0},0]
["SENESCYT-040-01-04","Aprobación resolución de terminación del contrato de crédito educativo ",30,0,0,0]
["SENESCYT-041-01-01","Aprobación de legalización de contrato de becas nacionales e internacionales",413,0,0,0]
["SENESCYT-043-01-01","Autorización de desembolso de becas nacionales e internacionales a partir de segundo pago",3166,0,0,0]
["SENESCYT-044-01-01","Aprobación de cambio de condiciones contractuales  de beca nacional o internacional",58,0,0,0]
["SENESCYT-044-01-02","Autorización de cambio de condiciones contractuales antes de la firma de beca ",12,0,0,0]
["SENESCYT-044-01-03","Aprobación de resolución a la solicitud de renuncia a la beca educativa (contrato suscrito sin desembolsos)",2,0,0,0]
["SENESCYT-044-02-01","Autorización de prórroga de plazo de estudios para beneficiarios de becas educativas",31,0,0,0]
["SENESCYT-044-02-02","Aprobación resolución de reactivación de beca educativa",15,0,0,0]
["SENESCYT-044-02-03","Aprobación resolución a la solicitud de terminación de contrato de becas",13,0,0,0]
["SENESCYT-044-02-04","Aprobación resolución a la solicitud de suspensión temporal de estudios para beneficiarios de becas ",11,0,0,0]
["SENESCYT-045-01-01","Emisión de certificado de ser beneficiario de becas nacionales e internacionales",981,0,0,0]
["SENESCYT-045-02-01","Atención a la solicitud de apelación al resultado de la postulación de becas nacionales e internacionales",0,0,0,0]
["SENESCYT-002-01-02","Reconocimiento de títulos profesionales o grados académicos en el campo de la salud",1320,2,{"$f":"(D58/C58)*100","v":0.15151515151515152},4]
["SENESCYT-002-01-03","Reconocimiento de títulos doctorales del extrajero (PhD.)",419,4,0.95465393794749409,4]
["SENESCYT-003-01-01","Certificación de acreditación de las instituciones de educación superior nacionales",40451,3,7.4163803119823984E-3,4]
["SENESCYT-009-01-01","Hojas de vida de becarios para procesos de selección",994,1,0.1006036217303823,4]
["SENESCYT-011-01-01","Acreditación de investigadores/as científicos/as",337,2,0.59347181008902083,4]
["SENESCYT-020-01-01","Obtención de cupos para el acceso a la educación superior para ecuatorianos residentes y no residentes en el país y para extranjeros residentes en el país",218302,173,7.9248014218834456E-2,4]
["SENESCYT-021-01-01","Certificado de notas obtenidas en el examen para el acceso a la educación superior",630753,1,1.5854066488784041E-4,4]
["SENESCYT-021-01-02","Certificado de haber aceptado o no haber aceptado un cupo en el Sistema Nacional de Nivelación y Admisión",215222,3,1.3939095445632882E-3,4]
["SENESCYT-022-01-01","Habilitación de cuenta en plataforma \"Ser Bachiller\"",31992,2,6.2515628907226809E-3,4]
["SENESCYT-022-01-02","Habilitación de nota en plataforma \"Ser Bachiller\"",71443,20,2.799434514228126E-2,4]
["SENESCYT-034-01-01","Aprobación de liquidación de becas nacionales e internacionales",236,1,0.42372881355932202,4]
["SENESCYT-042-01-01","Aprobación de postulación a becas nacionales e internacionales",1554,1,6.4350064350064351E-2,4]
["SENESCYT-001-02-01","Registro de títulos históricos",107,6,5.6074766355140184,10]
["SENESCYT-002-01-01","Reconocimiento general de títulos del extranjero",8022,123,1.5332834704562455,10]
["SENESCYT-004-01-01","Modificación de registro de títulos nacionales de Instituciones de Educación Superior cerradas",13,9,69.230769230769226,10]
["SENESCYT-004-01-02","Modificación del nivel de formación de los títulos de tecnólogos médicos al tercer nivel y de doctores al cuarto nivel",6,2,33.333333333333329,10]
["SENESCYT-004-02-03","Modificación de registro de títulos extranjero de campos de información académica general",78,7,8.9743589743589745,10]
["SENESCYT-004-02-04","Modificación de registro de títulos extranjero de campos de información personal",678,7,1.0324483775811208,10]
["SENESCYT-005-01-01","Anulaciones de registro de títulos nacionales",49,4,8.1632653061224492,10]
["SENESCYT-006-01-01","Modificación de datos de carreras y programas de estudio",5,3,60,10]
["SENESCYT-008-01-01","Evaluación de IES extranjeras para inclusión o exclusión en el listado",8,4,50,10]
["SENESCYT-018-01-01","Acreditación de espacios y agentes de innovación",25,1,4,10]
["SENESCYT-024-01-01","Emisión de títulos de formación técnica y tecnológica de instituciones públicas o particulares",1,1,100,10]
["SENESCYT-026-01-01","Atención de solicitudes de acceso a la información pública referente a la educación superior, la ciencia, tecnología e innovación",93,93,100,10]
["SENESCYT-034-01-02","Aprobación de facilidades de pago a valores adeudados para beneficiarios de becas educativas",11,1,9.0909090909090917,10]
["SENESCYT-039-01-01","Aprobación de desembolso, reembolso o adelanto de desembolso  de crédito educativo ",30,1,3.3333333333333335,10]

{"sheet":"COSTO ADMINISTRACIÓN PÚBLICA","index":3,"n_rows":84,"n_cols":9,"rows_kept":84,"cut":false,"hidden":false,"merged":[[0,0,0,5],[1,0,1,5],[3,0,4,0],[3,1,4,1],[3,2,3,4],[3,5,4,5]]}
["PRIORIZACIÓN DE TRÁMITES ADMINISTRATIVOS"]
["COSTOS PARA LA ADMINISTRACIÓN PÚBLICA"]
[]
["IDENTIFICADOR","TRÁMITE","INSUMOS PARA COSTO",null,null,"COSTO PARA LA ADM. PÚBLICA",null,"SBU",400]
[null,null,"TIEMPO (HORAS)","COSTO PERSONAL","COSTO RECURSOS"]
["SENESCYT-001-01-01","Registro de carreras y programas en estado no vigente y de cuarto nivel",2,{"$f":"C6*$I$4/160","v":5},0.15575,{"$f":"D6+E6","v":5.1557500000000003}]
["SENESCYT-001-02-01","Registro de títulos históricos",2,{"$f":"C7*$I$4/160","v":5},0.15575,{"$f":"D7+E7","v":5.1557500000000003}]
["SENESCYT-002-01-01","Reconocimiento general de títulos del extranjero",2,5,0.15575,5.1557500000000003]
["SENESCYT-002-01-02","Reconocimiento de títulos profesionales o grados académicos en el campo de la salud",2,5,0.15575,5.1557500000000003]
["SENESCYT-002-01-03","Reconocimiento de títulos doctorales del extrajero (PhD.)",2,5,0.15575,5.1557500000000003]
["SENESCYT-003-01-01","Certificación de acreditación de las instituciones de educación superior nacionales",0,0,0,0]
["SENESCYT-004-01-01","Modificación de registro de títulos nacionales de Instituciones de Educación Superior cerradas",2,5,0.15575,{"$f":"D12+E12","v":5.1557500000000003}]
["SENESCYT-004-01-02","Modificación del nivel de formación de los títulos de tecnólogos médicos al tercer nivel y de doctores al cuarto nivel",3,7.5,0.233625,7.733625]
["SENESCYT-004-02-01","Modificación de registro de títulos extranjero para PhD",3,7.5,0.233625,7.733625]
["SENESCYT-004-02-02","Modificación de registro de títulos extranjero de títulos propios",2,5,0.15575,5.1557500000000003]
["SENESCYT-004-02-03","Modificación de registro de títulos extranjero de campos de información académica general",2,5,0.15575,5.1557500000000003]
["SENESCYT-004-02-04","Modificación de registro de títulos extranjero de campos de información personal",2,5,0.15575,5.1557500000000003]
["SENESCYT-005-01-01","Anulaciones de registro de títulos nacionales",3,7.5,0.233625,{"$f":"D18+E18","v":7.733625}]
["SENESCYT-005-02-01","Anulaciones de registro de títulos del extranjero",5,12.5,0.38937500000000003,12.889374999999999]
["SENESCYT-006-01-01","Modificación de datos de carreras y programas de estudio",18,45,1.4017500000000001,46.40175]
["SENESCYT-007-01-01","Exoneración de derechos aduaneros para instituciones de educación superior",5,12.5,0.38937500000000003,12.889374999999999]
["SENESCYT-008-01-01","Evaluación de IES extranjeras para inclusión o exclusión en el listado",5,12.5,0.38937500000000003,12.889374999999999]
["SENESCYT-009-01-01","Hojas de vida de becarios para procesos de selección",1,2.5,7.7875E-2,2.5778750000000001]
["SENESCYT-010-01-01","Vinculación de becarios a la plataforma de transferencia del conocimiento \"Ensamble\"",1,2.5,7.7875E-2,2.5778750000000001]
["SENESCYT-010-02-01","Registro de empresas públicas y privadas en la plataforma de transferencia del conocimiento \"Ensamble\"",1,2.5,7.7875E-2,2.5778750000000001]
["SENESCYT-011-01-01","Acreditación de investigadores/as científicos/as",13,32.5,1.012375,33.512374999999999]
["SENESCYT-012-01-01","Categorización como Investigador Principal 4",13,32.5,1.012375,33.512374999999999]
["SENESCYT-012-01-02","Categorización como Investigador Principal 3",13,32.5,1.012375,33.512374999999999]
["SENESCYT-012-01-03","Categorización como Investigador Principal 2",13,32.5,1.012375,33.512374999999999]
["SENESCYT-012-01-04","Categorización como Investigador Agregado 3",13,32.5,1.012375,33.512374999999999]
["SENESCYT-012-01-05","Categorización como Investigador Agregado 2",13,32.5,1.012375,33.512374999999999]
["SENESCYT-012-01-06","Categorización como Investigador Agregado 1",13,32.5,1.012375,33.512374999999999]
["SENESCYT-012-01-07","Categorización como Investigador Auxiliar 2",13,32.5,1.012375,33.512374999999999]
["SENESCYT-012-01-08","Categorización como Investigador Auxiliar 1",13,32.5,1.012375,33.512374999999999]
["SENESCYT-012-01-09","Categorización como Investigador Principal 1",13,32.5,1.012375,33.512374999999999]
["SENESCYT-013-01-01","Asignación del código ISSN (International Standard Serial Number)",3,7.5,0.233625,7.733625]
["SENESCYT-013-01-02","Actualización de información del código ISSN",4,10,0.3115,10.311500000000001]
["SENESCYT-014-01-01","Evaluación o revaluación Latindex para publicaciones científicas",3,7.5,0.233625,7.733625]
["SENESCYT-014-01-02","Actualización de información de la publicación Latindex",4,10,0.3115,10.311500000000001]
["SENESCYT-017-01-01","Postulación de proyectos innovadores y la asignación de capital semilla",12,30,0.9345,30.9345]
["SENESCYT-018-01-01","Acreditación de espacios y agentes de innovación",2,5,0.15575,5.1557500000000003]
["SENESCYT-019-01-01","Registro de espacios de trabajo colaborativo",2,5,0.15575,5.1557500000000003]
["SENESCYT-020-01-01","Obtención de cupos para el acceso a la educación superior para ecuatorianos residentes y no residentes en el país y para extranjeros residentes en el país",6,15,3.42,18.420000000000002]
["SENESCYT-021-01-01","Certificado de notas obtenidas en el examen para el acceso a la educación superior",0,0,0,0]
["SENESCYT-021-01-02","Certificado de haber aceptado o no haber aceptado un cupo en el Sistema Nacional de Nivelación y Admisión",0,0,0,0]
["SENESCYT-021-01-03","Certificado de pertenencia al grupo de alto rendimiento (GAR) programa internacional",1,2.5,7.7875E-2,2.5778750000000001]
["SENESCYT-022-01-01","Habilitación de cuenta en plataforma \"Ser Bachiller\"",1,2.5,7.7875E-2,2.5778750000000001]
["SENESCYT-022-01-02","Habilitación de nota en plataforma \"Ser Bachiller\"",1,2.5,7.7875E-2,2.5778750000000001]
["SENESCYT-023-01-01","Inscripción para el acceso a la nivelación general",0,0,0,0]
["SENESCYT-024-01-01","Emisión de títulos de formación técnica y tecnológica de instituciones públicas o particulares",3,7.5,0.233625,7.733625]
["SENESCYT-024-01-02","Certificado de títulos en proceso de emisión de formación técnica y tecnológica de instituciones públicas o particulares",1,2.5,7.7875E-2,2.5778750000000001]
["SENESCYT-025-01-01","Creación de credenciales para Instituciones de Educación Superior (IES)",5,12.5,0.38937500000000003,12.889374999999999]
["SENESCYT-025-01-02","Actualización de datos generales para el registro de firmas de las autoridades de las Instituciones de Educación Superior.",3,7.5,0.233625,7.733625]
["SENESCYT-026-01-01","Atención de solicitudes de acceso a la información pública referente a la educación superior, la ciencia, tecnología e innovación",1,2.5,7.7875E-2,2.5778750000000001]
["SENESCYT-027-01-01","Registro de Redes del Sistema de Educación Superior y del Sistema Nacional de Ciencia, Tecnología, Innovación y Saberes Ancestrales",2,5,0.15575,5.1557500000000003]
["SENESCYT-028-01-01","Registro de personas naturales relacionadas a la investigación y/o desarrollo tecnológico",4,10,0.3115,10.311500000000001]
["SENESCYT-034-01-01","Aprobación de liquidación de becas nacionales e internacionales",4,{"$f":"C57*$I$4/160","v":10},0.1246,10.124599999999999]
["SENESCYT-034-01-02","Aprobación de facilidades de pago a valores adeudados para beneficiarios de becas educativas",2,{"$f":"C58*$I$4/160","v":5},6.2300000000000001E-2,5.0622999999999996]
["SENESCYT-035-01-01","Autorización de registro de compensación becas internacionales y administración becas otorgadas por el ministerio de salud pública",1,2.5,3.1150000000000001E-2,2.5311499999999998]
["SENESCYT-035-01-02","Autorización de cambio o liberación de la entidad auspiciante de becas internacionales",4,10,0.1246,10.124599999999999]
["SENESCYT-035-01-03","Autorización de diferimiento del período de compensación de becas",4,10,0.1246,10.124599999999999]
["SENESCYT-035-01-04","Autorización de cambio de período de compensación y otros tipos de compensación para beneficiarios de becas educativas ",4,10,0.1246,10.124599999999999]
["SENESCYT-035-01-05","Autorización de prórroga de plazo para ejecución de proyecto para beneficiarios de becas",4,10,0.1246,10.124599999999999]
["SENESCYT-036-01-01","Aprobación de facilidades de pago en etapa coactiva",1,2.5,3.1150000000000001E-2,2.5311499999999998]
["SENESCYT-037-01-01","Emisión de certificados relacionados con crédito educativo",0,0,0,0]
["SENESCYT-037-01-02","Otorgamiento de información académica de crédito educativo ",2,5,6.2300000000000001E-2,5.0622999999999996]
["SENESCYT-038-01-01","Emisión de reportes académicos de crédito educativo",1,2.5,3.1150000000000001E-2,2.5311499999999998]
["SENESCYT-039-01-01","Aprobación de desembolso, reembolso o adelanto de desembolso  de crédito educativo ",2,5,6.2300000000000001E-2,5.0622999999999996]
["SENESCYT-040-01-01","Otorgamiento de prórroga académica por crédito educativo",2,5,6.2300000000000001E-2,5.0622999999999996]
["SENESCYT-040-01-02","Aprobación resolución de actualización de datos de la persona beneficiaria de crédito educativo",2,5,6.2300000000000001E-2,5.0622999999999996]
["SENESCYT-040-01-03","Aprobación resolución de suspensión de desembolsos de crédito educativo",2,5,6.2300000000000001E-2,5.0622999999999996]
["SENESCYT-040-01-04","Aprobación resolución de terminación del contrato de crédito educativo ",2,5,6.2300000000000001E-2,5.0622999999999996]
["SENESCYT-041-01-01","Aprobación de legalización de contrato de becas nacionales e internacionales",2,5,0.1246,5.1246]
["SENESCYT-042-01-01","Aprobación de postulación a becas nacionales e internacionales",4,10,0.1246,10.124599999999999]
["SENESCYT-043-01-01","Autorización de desembolso de becas nacionales e internacionales a partir de segundo pago",2,5,6.2300000000000001E-2,5.0622999999999996]
["SENESCYT-044-01-01","Aprobación de cambio de condiciones contractuales  de beca nacional o internacional",3,7.5,9.3450000000000005E-2,{"$f":"D76+E76","v":7.5934499999999998}]
["SENESCYT-044-01-02","Autorización de cambio de condiciones contractuales antes de la firma de beca ",3,7.5,9.3450000000000005E-2,7.5934499999999998]
["SENESCYT-044-01-03","Aprobación de resolución a la solicitud de renuncia a la beca educativa (contrato suscrito sin desembolsos)",2,5,6.2300000000000001E-2,5.0622999999999996]
["SENESCYT-044-02-01","Autorización de prórroga de plazo de estudios para beneficiarios de becas educativas",4,10,0.1246,10.124599999999999]
["SENESCYT-044-02-02","Aprobación resolución de reactivación de beca educativa",3,7.5,9.3450000000000005E-2,7.5934499999999998]
["SENESCYT-044-02-03","Aprobación resolución a la solicitud de terminación de contrato de becas",2,5,6.2300000000000001E-2,5.0622999999999996]
["SENESCYT-044-02-04","Aprobación resolución a la solicitud de suspensión temporal de estudios para beneficiarios de becas ",3,7.5,9.3450000000000005E-2,7.5934499999999998]
["SENESCYT-045-01-01","Emisión de certificado de ser beneficiario de becas nacionales e internacionales",0,0,0,0]
["SENESCYT-045-02-01","Atención a la solicitud de apelación al resultado de la postulación de becas nacionales e internacionales",2,5,6.2300000000000001E-2,5.0622999999999996]

{"sheet":"RESUMEN DE COSTOS AP","index":4,"n_rows":83,"n_cols":4,"rows_kept":83,"cut":false,"hidden":false,"merged":[[0,0,0,5],[1,0,1,5]]}
["PRIORIZACIÓN DE TRÁMITES ADMINISTRATIVOS"]
["COSTOS PARA LA ADMINISTRACIÓN PÚBLICA"]
[]
["IDENTIFICADOR","TRÁMITE","COSTO PARA LA ADM. PÚBLICA","PUNTUACIÓN"]
["SENESCYT-003-01-01","Certificación de acreditación de las instituciones de educación superior nacionales",0,0]
["SENESCYT-021-01-02","Certificado de haber aceptado o no haber aceptado un cupo en el Sistema Nacional de Nivelación y Admisión",0,0]
["SENESCYT-021-01-01","Certificado de notas obtenidas en el examen para el acceso a la educación superior",0,0]
["SENESCYT-045-01-01","Emisión de certificado de ser beneficiario de becas nacionales e internacionales",0,0]
["SENESCYT-037-01-01","Emisión de certificados relacionados con crédito educativo",0,0]
["SENESCYT-023-01-01","Inscripción para el acceso a la nivelación general",0,0]
["SENESCYT-036-01-01","Aprobación de facilidades de pago en etapa coactiva",2.5311499999999998,5]
["SENESCYT-035-01-01","Autorización de registro de compensación becas internacionales y administración becas otorgadas por el ministerio de salud pública",2.5311499999999998,5]
["SENESCYT-038-01-01","Emisión de reportes académicos de crédito educativo",2.5311499999999998,5]
["SENESCYT-026-01-01","Atención de solicitudes de acceso a la información pública referente a la educación superior, la ciencia, tecnología e innovación",2.5778750000000001,5]
["SENESCYT-021-01-03","Certificado de pertenencia al grupo de alto rendimiento (GAR) programa internacional",2.5778750000000001,5]
["SENESCYT-024-01-02","Certificado de títulos en proceso de emisión de formación técnica y tecnológica de instituciones públicas o particulares",2.5778750000000001,5]
["SENESCYT-022-01-01","Habilitación de cuenta en plataforma \"Ser Bachiller\"",2.5778750000000001,5]
["SENESCYT-022-01-02","Habilitación de nota en plataforma \"Ser Bachiller\"",2.5778750000000001,5]
["SENESCYT-009-01-01","Hojas de vida de becarios para procesos de selección",2.5778750000000001,5]
["SENESCYT-010-02-01","Registro de empresas públicas y privadas en la plataforma de transferencia del conocimiento \"Ensamble\"",2.5778750000000001,5]
["SENESCYT-010-01-01","Vinculación de becarios a la plataforma de transferencia del conocimiento \"Ensamble\"",2.5778750000000001,5]
["SENESCYT-039-01-01","Aprobación de desembolso, reembolso o adelanto de desembolso  de crédito educativo ",5.0622999999999996,5]
["SENESCYT-034-01-02","Aprobación de facilidades de pago a valores adeudados para beneficiarios de becas educativas",5.0622999999999996,5]
["SENESCYT-044-01-03","Aprobación de resolución a la solicitud de renuncia a la beca educativa (contrato suscrito sin desembolsos)",5.0622999999999996,5]
["SENESCYT-044-02-03","Aprobación resolución a la solicitud de terminación de contrato de becas",5.0622999999999996,5]
["SENESCYT-040-01-02","Aprobación resolución de actualización de datos de la persona beneficiaria de crédito educativo",5.0622999999999996,5]
["SENESCYT-040-01-03","Aprobación resolución de suspensión de desembolsos de crédito educativo",5.0622999999999996,5]
["SENESCYT-040-01-04","Aprobación resolución de terminación del contrato de crédito educativo ",5.0622999999999996,5]
["SENESCYT-045-02-01","Atención a la solicitud de apelación al resultado de la postulación de becas nacionales e internacionales",5.0622999999999996,5]
["SENESCYT-043-01-01","Autorización de desembolso de becas nacionales e internacionales a partir de segundo pago",5.0622999999999996,5]
["SENESCYT-037-01-02","Otorgamiento de información académica de crédito educativo ",5.0622999999999996,5]
["SENESCYT-040-01-01","Otorgamiento de prórroga académica por crédito educativo",5.0622999999999996,5]
["SENESCYT-041-01-01","Aprobación de legalización de contrato de becas nacionales e internacionales",5.1246,5]
["SENESCYT-018-01-01","Acreditación de espacios y agentes de innovación",5.1557500000000003,5]
["SENESCYT-004-02-03","Modificación de registro de títulos extranjero de campos de información académica general",5.1557500000000003,5]
["SENESCYT-004-02-04","Modificación de registro de títulos extranjero de campos de información personal",5.1557500000000003,5]
["SENESCYT-004-02-02","Modificación de registro de títulos extranjero de títulos propios",5.1557500000000003,5]
["SENESCYT-004-01-01","Modificación de registro de títulos nacionales de Instituciones de Educación Superior cerradas",5.1557500000000003,5]
["SENESCYT-002-01-03","Reconocimiento de títulos doctorales del extrajero (PhD.)",5.1557500000000003,5]
["SENESCYT-002-01-02","Reconocimiento de títulos profesionales o grados académicos en el campo de la salud",5.1557500000000003,5]
["SENESCYT-002-01-01","Reconocimiento general de títulos del extranjero",5.1557500000000003,5]
["SENESCYT-001-01-01","Registro de carreras y programas en estado no vigente y de cuarto nivel",5.1557500000000003,5]
["SENESCYT-019-01-01","Registro de espacios de trabajo colaborativo",5.1557500000000003,5]
["SENESCYT-027-01-01","Registro de Redes del Sistema de Educación Superior y del Sistema Nacional de Ciencia, Tecnología, Innovación y Saberes Ancestrales",5.1557500000000003,5]
["SENESCYT-001-02-01","Registro de títulos históricos",5.1557500000000003,5]
["SENESCYT-044-01-01","Aprobación de cambio de condiciones contractuales  de beca nacional o internacional",7.5934499999999998,10]
["SENESCYT-044-02-04","Aprobación resolución a la solicitud de suspensión temporal de estudios para beneficiarios de becas ",7.5934499999999998,10]
["SENESCYT-044-02-02","Aprobación resolución de reactivación de beca educativa",7.5934499999999998,10]
["SENESCYT-044-01-02","Autorización de cambio de condiciones contractuales antes de la firma de beca ",7.5934499999999998,10]
["SENESCYT-025-01-02","Actualización de datos generales para el registro de firmas de las autoridades de las Instituciones de Educación Superior.",7.733625,10]
["SENESCYT-005-01-01","Anulaciones de registro de títulos nacionales",7.733625,10]
["SENESCYT-013-01-01","Asignación del código ISSN (International Standard Serial Number)",7.733625,10]
["SENESCYT-024-01-01","Emisión de títulos de formación técnica y tecnológica de instituciones públicas o particulares",7.733625,10]
["SENESCYT-014-01-01","Evaluación o revaluación Latindex para publicaciones científicas",7.733625,10]
["SENESCYT-004-02-01","Modificación de registro de títulos extranjero para PhD",7.733625,10]
["SENESCYT-004-01-02","Modificación del nivel de formación de los títulos de tecnólogos médicos al tercer nivel y de doctores al cuarto nivel",7.733625,10]
["SENESCYT-034-01-01","Aprobación de liquidación de becas nacionales e internacionales",10.124599999999999,10]
["SENESCYT-042-01-01","Aprobación de postulación a becas nacionales e internacionales",10.124599999999999,10]
["SENESCYT-035-01-04","Autorización de cambio de período de compensación y otros tipos de compensación para beneficiarios de becas educativas ",10.124599999999999,10]
["SENESCYT-035-01-02","Autorización de cambio o liberación de la entidad auspiciante de becas internacionales",10.124599999999999,10]
["SENESCYT-035-01-03","Autorización de diferimiento del período de compensación de becas",10.124599999999999,10]
["SENESCYT-044-02-01","Autorización de prórroga de plazo de estudios para beneficiarios de becas educativas",10.124599999999999,10]
["SENESCYT-035-01-05","Autorización de prórroga de plazo para ejecución de proyecto para beneficiarios de becas",10.124599999999999,10]
["SENESCYT-014-01-02","Actualización de información de la publicación Latindex",10.311500000000001,20]
["SENESCYT-013-01-02","Actualización de información del código ISSN",10.311500000000001,20]
["SENESCYT-028-01-01","Registro de personas naturales relacionadas a la investigación y/o desarrollo tecnológico",10.311500000000001,20]
["SENESCYT-005-02-01","Anulaciones de registro de títulos del extranjero",12.889374999999999,20]
["SENESCYT-025-01-01","Creación de credenciales para Instituciones de Educación Superior (IES)",12.889374999999999,20]
["SENESCYT-008-01-01","Evaluación de IES extranjeras para inclusión o exclusión en el listado",12.889374999999999,20]
["SENESCYT-007-01-01","Exoneración de derechos aduaneros para instituciones de educación superior",12.889374999999999,20]
["SENESCYT-020-01-01","Obtención de cupos para el acceso a la educación superior para ecuatorianos residentes y no residentes en el país y para extranjeros residentes en el país",18.420000000000002,20]
["SENESCYT-017-01-01","Postulación de proyectos innovadores y la asignación de capital semilla",30.9345,20]
["SENESCYT-011-01-01","Acreditación de investigadores/as científicos/as",33.512374999999999,20]
["SENESCYT-012-01-06","Categorización como Investigador Agregado 1",33.512374999999999,20]
["SENESCYT-012-01-05","Categorización como Investigador Agregado 2",33.512374999999999,20]
["SENESCYT-012-01-04","Categorización como Investigador Agregado 3",33.512374999999999,20]
["SENESCYT-012-01-08","Categorización como Investigador Auxiliar 1",33.512374999999999,20]
["SENESCYT-012-01-07","Categorización como Investigador Auxiliar 2",33.512374999999999,20]
["SENESCYT-012-01-09","Categorización como Investigador Principal 1",33.512374999999999,20]
["SENESCYT-012-01-03","Categorización como Investigador Principal 2",33.512374999999999,20]
["SENESCYT-012-01-02","Categorización como Investigador Principal 3",33.512374999999999,20]
["SENESCYT-012-01-01","Categorización como Investigador Principal 4",33.512374999999999,20]
["SENESCYT-006-01-01","Modificación de datos de carreras y programas de estudio",46.40175,20]

{"sheet":"AUXILIAR COSTO ADMINISTRACIÓN","index":5,"n_rows":687,"n_cols":4,"rows_kept":687,"cut":false,"hidden":false,"merged":[[0,0,0,2],[1,1,1,2],[10,0,10,2],[11,1,11,2],[20,0,20,2],[21,1,21,2],[31,0,31,2],[32,1,32,2],[42,0,42,2],[43,1,43,2],[53,1,53,2],[58,1,58,2],[67,1,67,2],[77,1,77,2],[86,1,86,2],[95,1,95,2],[104,1,104,2],[113,1,113,2],[122,1,122,2],[131,1,131,2],[140,1,140,2],[149,1,149,2],[158,1,158,2],[166,1,166,2],[175,1,175,2],[184,1,184,2],[192,1,192,2],[200,1,200,2],[208,1,208,2],[216,1,216,2],[224,1,224,2],[232,1,232,2],[240,1,240,2],[248,1,248,2],[256,1,256,2],[264,1,264,2],[273,1,273,2],[281,1,281,2],[289,1,289,2],[297,1,297,2],[305,1,305,2],[312,1,312,2],[319,1,319,2],[328,1,328,2],[334,1,334,2],[340,1,340,2],[349,1,349,2],[358,1,358,2],[367,1,367,2],[373,1,373,2],[382,1,382,2],[390,1,390,2],[399,1,399,2],[407,1,407,2],[415,1,415,2],[424,1,424,2],[433,1,433,2],[442,1,442,2],[451,1,451,2],[459,1,459,2],[469,1,469,2],[479,1,479,2],[489,1,489,2],[499,1,499,2],[509,1,509,2],[515,1,515,2],[523,1,523,2],[531,1,531,2],[550,1,550,2],[558,1,558,2],[566,1,566,2],[574,1,574,2],[582,1,582,2],[592,1,592,2],[599,1,599,2],[656,1,656,2],[665,1,665,2],[675,1,675,2],[681,1,681,2],[607,1,607,2],[617,1,617,2],[627,1,627,2],[636,1,636,2],[646,1,646,2]]}
[]
["TRÁMITE:","SENESCYT-001-01-01  Registro de carreras y programas en estado no vigente y de cuarto nivel"]
["NO.","ACTIVIDAD","TIEMPO (MINUTOS)"]
[1,"Revisar solicitud de trámite en plataforma SIAU online ",10]
[2,"Analizar pertinencia del trámite",60]
[3,"Solicitar registro de carrera",15]
[4,"Generar resolución previa",40]
[5,"Notificar al usuario la resolución del trámite ",5]
[null,"SUMATORIA ACTIVIDADES",{"$f":"SUM(C4:C8)","v":130},{"$f":"+C9/60","v":2.1666666666666665}]
[]
[]
["TRÁMITE:","SENESCYT-001-02-01 Registro de títulos históricos"]
["NO.","ACTIVIDAD","TIEMPO (MINUTOS)"]
[1,"Revisar solicitud de trámite en plataforma SIAU online ",10]
[2,"Analizar pertinencia del trámite",60]
[3,"Solicitar registro de carrera",15]
[4,"Generar resolución previa",40]
[5,"Notificar al usuario la resolución del trámite ",5]
[null,"SUMATORIA ACTIVIDADES",{"$f":"SUM(C14:C18)","v":130},{"$f":"+C19/60","v":2.1666666666666665}]
[]
[]
["TRÁMITE:","SENESCYT-002-01-01 Reconocimiento general de títulos del extranjero"]
["NO.","ACTIVIDAD","TIEMPO (MINUTOS)"]
[1,"Ingresar requisitos en la plataforma SNIESE",5]
[2,"Asignar expediente ",5]
[3,"Revisar expediente ",35]
[4,"Dictaminar aceptación o negación ",45]
[5,"Firmar resolución ",15]
[6,"Notificar negativa o aprobación del reconocimiento del título ",5]
[null,"SUMATORIA ACTIVIDADES",{"$f":"SUM(C24:C29)","v":110},{"$f":"+C30/60","v":1.8333333333333333}]
[]
[]
["TRÁMITE:","SENESCYT-002-01-02 Reconocimiento de títulos profesionales o grados académicos en el campo de la salud"]
["NO.","ACTIVIDAD","TIEMPO (MINUTOS)"]
[1,"Ingresar requisitos en la plataforma SNIESE",5]
[2,"Asignar expediente ",5]
[3,"Revisar expediente ",35]
[4,"Dictaminar aceptación o negación en Comité de Reconocimiento de Títulos del extranjero",20]
[5,"Firmar resolución ",15]
[6,"Notificar negativa o aprobación del reconocimiento del título ",5]
[null,"SUMATORIA ACTIVIDADES",{"$f":"SUM(C35:C40)","v":85},{"$f":"+C41/60","v":1.4166666666666667}]
[]
[]
["TRÁMITE:","SENESCYT-002-01-03 Reconocimiento de títulos doctorales del extranjero (PhD.)"]
["NO.","ACTIVIDAD","TIEMPO (MINUTOS)"]
[1,"Ingresar requisitos en la plataforma SNIESE",5]
[2,"Asignar expediente ",5]
[3,"Revisar expediente ",35]
[4,"Dictaminar aceptación o negación en Comité de Reconocimiento de Títulos del extranjero",20]
[5,"Firmar resolución ",15]
[6,"Notificar negativa o aprobación del reconocimiento del título ",5]
[null,"SUMATORIA ACTIVIDADES",{"$f":"SUM(C46:C51)","v":85},{"$f":"+C52/60","v":1.4166666666666667}]
[]
["TRÁMITE:","SENESCYT-003-01-01 Certificación de acreditación de las instituciones de educación superior nacionales"]
["NO.","ACTIVIDAD","TIEMPO (MINUTOS)"]
[1,"SERVICIO 100% AUTOMATIZADO"]
[null,"SUMATORIA ACTIVIDADES",{"$f":"SUM(C56:C56)","v":0}]
[]
["TRÁMITE:","SENESCYT-004-01-01 Modificación de registro de títulos nacionales de Instituciones de Educación Superior cerradas"]
["NO.","ACTIVIDAD","TIEMPO (MINUTOS)"]
[1,"Revisar solicitud de trámite en plataforma SIAU online ",10]
[2,"Analizar pertinencia del trámite",55]
[3,"Solicitar modificación de registro de títulos nacionales ",15]
[4,"Generar resolución previa",40]
[5,"Notificar al usuario la resolución del trámite ",5]
[null,"SUMATORIA ACTIVIDADES",{"$f":"SUM(C61:C65)","v":125},{"$f":"+C66/60","v":2.0833333333333335}]
[]
["TRÁMITE:","SENESCYT-004-01-02 Modificación del nivel de formación de los títulos de tecnólogos médicos al tercer nivel y de doctores al cuarto nivel"]
["NO.","ACTIVIDAD","TIEMPO (MINUTOS)"]
[1,"Revisar solicitud de trámite en plataforma SIAU online ",10]
[2,"Analizar pertinencia del trámite",90]
[3,"Solicitar modificación de registro de títulos nacionales",15]
[4,"Generar resolución previa",40]
[5,"Notificar al usuario la resolución del trámite ",5]
[null,"SUMATORIA ACTIVIDADES",{"$f":"SUM(C70:C74)","v":160},{"$f":"+C75/60","v":2.6666666666666665}]
[]
[]
["TRÁMITE:","SENESCYT-004-02-01 Modificación de registro de títulos extranjero para PhD"]
["NO.","ACTIVIDAD","TIEMPO (MINUTOS)"]
[1,"Revisar solicitud de trámite en plataforma SIAU online ",10]
[2,"Analizar pertinencia del trámite",120]
[3,"Solicitar modificación de registro de títulos nacionales ",15]
[4,"Generar resolución previa",50]
[5,"Notificar al usuario la resolución del trámite ",5]
[null,"SUMATORIA ACTIVIDADES",{"$f":"SUM(C80:C84)","v":200},{"$f":"+C85/60","v":3.3333333333333335}]
[]
["TRÁMITE:","SENESCYT-004-02-02 Modificación de registro de títulos extranjero de títulos propios"]
["NO.","ACTIVIDAD","TIEMPO (MINUTOS)"]
[1,"Revisar solicitud de trámite en plataforma SIAU online ",10]
[2,"Analizar pertinencia del trámite",40]
[3,"Solicitar modificación de registro de títulos del extranjero",15]
[4,"Generar resolución previa",40]
[5,"Notificar al usuario la resolución del trámite ",5]
[null,"SUMATORIA ACTIVIDADES",{"$f":"SUM(C89:C93)","v":110},{"$f":"+C94/60","v":1.8333333333333333}]
[]
["TRÁMITE:","SENESCYT-004-02-03 Modificación de registro de títulos extranjero de campos de información académica general"]
["NO.","ACTIVIDAD","TIEMPO (MINUTOS)"]
[1,"Revisar solicitud de trámite en plataforma SIAU online ",10]
[2,"Analizar pertinencia del trámite",40]
[3,"Solicitar modificación de registro de títulos del extranjero",15]
[4,"Generar resolución previa",40]
[5,"Notificar al usuario la resolución del trámite ",5]
[null,"SUMATORIA ACTIVIDADES",{"$f":"SUM(C98:C102)","v":110},{"$f":"+C103/60","v":1.8333333333333333}]
[]
["TRÁMITE:","SENESCYT-004-02-04 Modificación de registro de títulos extranjero de campos de información personal"]
["NO.","ACTIVIDAD","TIEMPO (MINUTOS)"]
[1,"Revisar solicitud de trámite en plataforma SIAU online ",10]
[2,"Analizar pertinencia del trámite",40]
[3,"Solicitar modificación de registro de títulos del extranjero",15]
[4,"Generar resolución previa",40]
[5,"Notificar al usuario la resolución del trámite ",5]
[null,"SUMATORIA ACTIVIDADES",{"$f":"SUM(C107:C111)","v":110},{"$f":"+C112/60","v":1.8333333333333333}]
[]
["TRÁMITE:","SENESCYT-005-01-01 Anulaciones de registro de títulos nacionales"]
["NO.","ACTIVIDAD","TIEMPO (MINUTOS)"]
[1,"Revisar solicitud de trámite en plataforma SIAU online ",10]
[2,"Analizar pertinencia del trámite",90]
[3,"Solicitar modificación de registro de títulos nacionales",15]
[4,"Generar resolución previa",40]
[5,"Notificar al usuario la resolución del trámite ",5]
[null,"SUMATORIA ACTIVIDADES",{"$f":"SUM(C116:C120)","v":160},{"$f":"+C121/60","v":2.6666666666666665}]
[]
["TRÁMITE:","SENESCYT-005-02-01 Anulaciones de registro de títulos del extranjero"]
["NO.","ACTIVIDAD","TIEMPO (MINUTOS)"]
[1,"Revisar solicitud de trámite en plataforma SIAU online ",10]
[2,"Analizar pertinencia del trámite",180]
[3,"Solicitar modificación de registro de títulos del extranjero",15]
[4,"Generar resolución previa",60]
[5,"Notificar al usuario la resolución del trámite ",5]
[null,"SUMATORIA ACTIVIDADES",{"$f":"SUM(C125:C129)","v":270},{"$f":"+C130/60","v":4.5}]
[]
["TRÁMITE:","SENESCYT-006-01-01 Modificación de datos de carreras y programas de estudio"]
["NO.","ACTIVIDAD","TIEMPO (MINUTOS)"]
[1,"Revisar solicitud de trámite en plataforma SIAU online ",10]
[2,"Analizar pertinencia del trámite",960]
[3,"Elaborar informe de modificación de información ",60]
[4,"Solicitar modificación datos de carreras y programas de estudio",15]
[5,"Notificar al usuario la resolución del trámite ",5]
[null,"SUMATORIA ACTIVIDADES",{"$f":"SUM(C134:C138)","v":1050},{"$f":"+C139/60","v":17.5}]
[]
["TRÁMITE:","SENESCYT-007-01-01 Exoneración de derechos aduaneros para instituciones de educación superior"]
["NO.","ACTIVIDAD","TIEMPO (MINUTOS)"]
[1,"Revisar solicitud de trámite en plataforma SIAU online ",10]
[2,"Analizar pertinencia del trámite",240]
[3,"Elaborar informe de exoneración de derechos aduaneros",60]
[5,"Notificar al usuario la resolución del trámite ",5]
[null,"SUMATORIA ACTIVIDADES",{"$f":"SUM(C143:C146)","v":315},{"$f":"+C147/60","v":5.25}]
[]
[]
["TRÁMITE:","SENESCYT-008-01-01 Evaluación de IES extranjeras para inclusión o exclusión en el listado"]
["NO.","ACTIVIDAD","TIEMPO (MINUTOS)"]
[1,"Revisar solicitud de trámite en plataforma SIAU online ",10]
[2,"Analizar pertinencia del trámite",180]
[3,"Elaborar informe de inclusión o exclusión en el listado",55]
[null,"Generar resolución previa en Comité ",60]
[4,"Notificar al usuario la resolución del trámite ",5]
[null,"SUMATORIA ACTIVIDADES",{"$f":"SUM(C152:C156)","v":310},{"$f":"+C157/60","v":5.166666666666667}]
[]
["TRÁMITE:","SENESCYT-009-01-01 Hojas de vida de becarios para procesos de selección"]
["NO.","ACTIVIDAD","TIEMPO (MINUTOS)"]
[1,"Revisar solicitud de trámite en plataforma",10]
[2,"Registrar formulario",20]
[3,"Identificar perfiles y verificar disponibilidad",25]
[4,"Notificar envío de hoja de vida ",5]
[null,"SUMATORIA ACTIVIDADES",{"$f":"SUM(C161:C164)","v":60},{"$f":"+C165/60","v":1}]
[]
["TRÁMITE:","SENESCYT-010-01-01 Vinculación de becarios a la plataforma de transferencia del conocimiento \"Ensamble\""]
["NO.","ACTIVIDAD","TIEMPO (MINUTOS)"]
[1,"Revisar registro de trámite en plataforma",10]
[2,"Contactar a postulante ",15]
[3,"Validar postulación ",20]
[4,"Registrar y gestionar activación de cuenta",20]
[5,"Notificar activación de cuenta ",5]
[null,"SUMATORIA ACTIVIDADES",{"$f":"SUM(C169:C173)","v":70},{"$f":"+C174/60","v":1.1666666666666667}]
[]
["TRÁMITE:","SENESCYT-010-02-01 Registro de empresas públicas y privadas en la plataforma de transferencia del conocimiento \"Ensamble\""]
["NO.","ACTIVIDAD","TIEMPO (MINUTOS)"]
[1,"Revisar registro de trámite en plataforma",10]
[2,"Contactar a postulante ",15]
[3,"Validar postulación ",20]
[4,"Registrar y gestionar activación de cuenta",20]
[5,"Notificar activación de cuenta ",5]
[null,"SUMATORIA ACTIVIDADES",{"$f":"SUM(C178:C182)","v":70},{"$f":"+C183/60","v":1.1666666666666667}]
[]
["TRÁMITE:","SENESCYT-011-01-01 Acreditación de investigadores/as científicos/as"]
["NO.","ACTIVIDAD","TIEMPO (MINUTOS)"]
[1,"Revisar solicitud de trámite en plataforma ",10]
[2,"Analizar requisitos",720]
[3,"Dictaminar aceptación o negación de acreditación de investigadores en plataforma",15]
[5,"Notificar al usuario la resolución del trámite ",5]
[null,"SUMATORIA ACTIVIDADES",{"$f":"SUM(C187:C190)","v":750},{"$f":"+C191/60","v":12.5}]
[]
["TRÁMITE:","SENESCYT-012-01-01 Categorización como Investigador Principal 4"]
["NO.","ACTIVIDAD","TIEMPO (MINUTOS)"]
[1,"Revisar solicitud de trámite en plataforma ",10]
[2,"Analizar requisitos",720]
[3,"Asignar categoría en base a estudios, experiencia, conocimientos",15]
[5,"Notificar al usuario la resolución del trámite ",5]
[null,"SUMATORIA ACTIVIDADES",{"$f":"SUM(C195:C198)","v":750},{"$f":"+C199/60","v":12.5}]
[]
["TRÁMITE:","SENESCYT-012-01-02 Categorización como Investigador Principal 3"]
["NO.","ACTIVIDAD","TIEMPO (MINUTOS)"]
[1,"Revisar solicitud de trámite en plataforma ",10]
[2,"Analizar requisitos",720]
[3,"Asignar categoría en base a estudios, experiencia, conocimientos",15]
[5,"Notificar al usuario la resolución del trámite ",5]
[null,"SUMATORIA ACTIVIDADES",{"$f":"SUM(C203:C206)","v":750},{"$f":"+C207/60","v":12.5}]
[]
["TRÁMITE:","SENESCYT-012-01-03 Categorización como Investigador Principal 2"]
["NO.","ACTIVIDAD","TIEMPO (MINUTOS)"]
[1,"Revisar solicitud de trámite en plataforma ",10]
[2,"Analizar requisitos",720]
[3,"Asignar categoría en base a estudios, experiencia, conocimientos",15]
[5,"Notificar al usuario la resolución del trámite ",5]
[null,"SUMATORIA ACTIVIDADES",{"$f":"SUM(C211:C214)","v":750},{"$f":"+C215/60","v":12.5}]
[]
["TRÁMITE:","SENESCYT-012-01-04 Categorización como Investigador Agregado 3"]
["NO.","ACTIVIDAD","TIEMPO (MINUTOS)"]
[1,"Revisar solicitud de trámite en plataforma ",10]
[2,"Analizar requisitos",720]
[3,"Asignar categoría en base a estudios, experiencia, conocimientos",15]
[5,"Notificar al usuario la resolución del trámite ",5]
[null,"SUMATORIA ACTIVIDADES",{"$f":"SUM(C219:C222)","v":750},{"$f":"+C223/60","v":12.5}]
[]
["TRÁMITE:","SENESCYT-012-01-05 Categorización como Investigador Agregado 2"]
["NO.","ACTIVIDAD","TIEMPO (MINUTOS)"]
[1,"Revisar solicitud de trámite en plataforma ",10]
[2,"Analizar requisitos",720]
[3,"Asignar categoría en base a estudios, experiencia, conocimientos",15]
[5,"Notificar al usuario la resolución del trámite ",5]
[null,"SUMATORIA ACTIVIDADES",{"$f":"SUM(C227:C230)","v":750},{"$f":"+C231/60","v":12.5}]
[]
["TRÁMITE:","SENESCYT-012-01-06 Categorización como Investigador Agregado 1"]
["NO.","ACTIVIDAD","TIEMPO (MINUTOS)"]
[1,"Revisar solicitud de trámite en plataforma ",10]
[2,"Analizar requisitos",720]
[3,"Asignar categoría en base a estudios, experiencia, conocimientos",15]
[5,"Notificar al usuario la resolución del trámite ",5]
[null,"SUMATORIA ACTIVIDADES",{"$f":"SUM(C235:C238)","v":750},{"$f":"+C239/60","v":12.5}]
[]
["TRÁMITE:","SENESCYT-012-01-07 Categorización como Investigador Auxiliar 2"]
["NO.","ACTIVIDAD","TIEMPO (MINUTOS)"]
[1,"Revisar solicitud de trámite en plataforma ",10]
[2,"Analizar requisitos",720]
[3,"Asignar categoría en base a estudios, experiencia, conocimientos",15]
[5,"Notificar al usuario la resolución del trámite ",5]
[null,"SUMATORIA ACTIVIDADES",{"$f":"SUM(C243:C246)","v":750},{"$f":"+C247/60","v":12.5}]
[]
["TRÁMITE:","SENESCYT-012-01-08 Categorización como Investigador Auxiliar 1"]
["NO.","ACTIVIDAD","TIEMPO (MINUTOS)"]
[1,"Revisar solicitud de trámite en plataforma ",10]
[2,"Analizar requisitos",720]
[3,"Asignar categoría en base a estudios, experiencia, conocimientos",15]
[5,"Notificar al usuario la resolución del trámite ",5]
[null,"SUMATORIA ACTIVIDADES",{"$f":"SUM(C251:C254)","v":750},{"$f":"+C255/60","v":12.5}]
[]
["TRÁMITE:","SENESCYT-012-01-09 Categorización como Investigador Principal 1"]
["NO.","ACTIVIDAD","TIEMPO (MINUTOS)"]
[1,"Revisar solicitud de trámite en plataforma ",10]
[2,"Analizar requisitos",720]
[3,"Asignar categoría en base a estudios, experiencia, conocimientos",15]
[5,"Notificar al usuario la resolución del trámite ",5]
[null,"SUMATORIA ACTIVIDADES",{"$f":"SUM(C259:C262)","v":750},{"$f":"+C263/60","v":12.5}]
[]
["TRÁMITE:","SENESCYT-013-01-01 Asignación del código ISSN (International Standard Serial Number)"]
["NO.","ACTIVIDAD","TIEMPO (MINUTOS)"]
[1,"Revisar solicitud de trámite en plataforma SIAU online ",10]
[2,"Analizar pertinencia del trámite",120]
[3,"Asignar código ISSN",40]
[4,"Registrar código en plataforma ISSN",10]
[5,"Notificar al usuario la resolución del trámite ",5]
[null,"SUMATORIA ACTIVIDADES",{"$f":"SUM(C267:C271)","v":185},{"$f":"+C272/60","v":3.0833333333333335}]
[]
["TRÁMITE:","SENESCYT-013-01-02 Actualización de información del código ISSN"]
["NO.","ACTIVIDAD","TIEMPO (MINUTOS)"]
[1,"Revisar solicitud de trámite en plataforma SIAU online ",10]
[2,"Analizar pertinencia del trámite",120]
[3,"Actualizar información del código ISSN",90]
[4,"Notificar al usuario la resolución del trámite ",5]
[null,"SUMATORIA ACTIVIDADES",{"$f":"SUM(C276:C279)","v":225},{"$f":"+C280/60","v":3.75}]
[]
["TRÁMITE:","SENESCYT-014-01-01 Evaluación o revaluación Latindex para publicaciones científicas"]
["NO.","ACTIVIDAD","TIEMPO (MINUTOS)"]
[1,"Revisar solicitud de trámite en plataforma SIAU online ",10]
[2,"Analizar pertinencia del trámite",120]
[3,"Ingresar información de la publicación en el Sistema Latindex",45]
[4,"Notificar al usuario la resolución del trámite ",5]
[null,"SUMATORIA ACTIVIDADES",{"$f":"SUM(C284:C287)","v":180},{"$f":"+C288/60","v":3}]
[]
["TRÁMITE:","SENESCYT-014-01-02 Actualización de información de la publicación Latindex"]
["NO.","ACTIVIDAD","TIEMPO (MINUTOS)"]
[1,"Revisar solicitud de trámite en plataforma SIAU online ",10]
[2,"Analizar pertinencia del trámite",120]
[3,"Ingresar información actualizada de la publicación en el Sistema Latindex",90]
[4,"Notificar al usuario la resolución del trámite ",5]
[null,"SUMATORIA ACTIVIDADES",{"$f":"SUM(C292:C295)","v":225},{"$f":"+C296/60","v":3.75}]
[]
["TRÁMITE:","SENESCYT-017-01-01 Postulación de proyectos innovadores y la asignación de capital semilla"]
["NO.","ACTIVIDAD","TIEMPO (MINUTOS)"]
[1,"Revisar solicitud de trámite en plataforma Banco de Ideas",10]
[2,"Analizar pertinencia del trámite",240]
[3,"Evaluar y validar información ",480]
[4,"Notificar al usuario la resolución del trámite ",5]
[null,"SUMATORIA ACTIVIDADES",{"$f":"SUM(C300:C303)","v":735},{"$f":"+C304/60","v":12.25}]
[]
["TRÁMITE:","SENESCYT-018-01-01 Acreditación de espacios y agentes de innovación"]
["NO.","ACTIVIDAD","TIEMPO (MINUTOS)"]
[1,"Revisar solicitud de trámite en plataforma Banco de Ideas",10]
[2,"Elaborar informe de resultados ",120]
[3,"Notificar al usuario la resolución del trámite ",5]
[null,"SUMATORIA ACTIVIDADES",{"$f":"SUM(C308:C310)","v":135},{"$f":"+C311/60","v":2.25}]
[]
["TRÁMITE:","SENESCYT-019-01-01 Registro de espacios de trabajo colaborativo"]
["NO.","ACTIVIDAD","TIEMPO (MINUTOS)"]
[1,"Revisar solicitud de trámite en plataforma Banco de Ideas",10]
[2,"Elaborar informe de resultados ",120]
[3,"Notificar al usuario la resolución del trámite ",5]
[null,"SUMATORIA ACTIVIDADES",{"$f":"SUM(C315:C317)","v":135},{"$f":"+C318/60","v":2.25}]
[]
["TRÁMITE:","SENESCYT-020-01-01 Obtención de cupos para el acceso a la educación superior para ecuatorianos residentes y no residentes en el país y para extranjeros residentes en el país"]
["NO.","ACTIVIDAD","TIEMPO (MINUTOS)"]
[1,"Analizar base de inscritos en plataforma Ser Bachiller",120]
[2,"Definir número de sedes y mega sedes para rendir examen ",60]
[3,"Cargar sedes y meda sedes en la plataforma Ser Bachiller para rendir el examen ",60]
[4,"Publicar notas en plataforma Ser Bachiller ",60]
[5,"Realizar asignación de cupos ",60]
[null,"SUMATORIA ACTIVIDADES",{"$f":"SUM(C322:C326)","v":360},{"$f":"+C327/60","v":6}]
[]
["TRÁMITE:","SENESCYT-021-01-01 Certificado de notas obtenidas en el examen para el acceso a la educación superior"]
["NO.","ACTIVIDAD","TIEMPO (MINUTOS)"]
[1,"SERVICIO 100% AUTOMATIZADO"]
[null,"SUMATORIA ACTIVIDADES",{"$f":"SUM(C331:C331)","v":0}]
[]
[]
["TRÁMITE:","SENESCYT-021-01-02 Certificado de haber aceptado o no haber aceptado un cupo en el Sistema Nacional de Nivelación y Admisión"]
["NO.","ACTIVIDAD","TIEMPO (MINUTOS)"]
[1,"SERVICIO 100% AUTOMATIZADO"]
[null,"SUMATORIA ACTIVIDADES",{"$f":"SUM(C337:C337)","v":0}]
[]
[]
["TRÁMITE:","SENESCYT-021-01-03 Certificado de pertenencia al grupo de alto rendimiento (GAR) programa internacional"]
["NO.","ACTIVIDAD","TIEMPO (MINUTOS)"]
[1,"Revisar solicitud de trámite en plataforma SIAU online ",10]
[2,"Validar información del solicitante",30]
[3,"Elaborar certificado de pertenencia GAR Internacional",20]
[4,"Generar resolución previa",5]
[5,"Notificar al usuario la resolución del trámite",5]
[null,"SUMATORIA ACTIVIDADES",{"$f":"SUM(C343:C347)","v":70},{"$f":"+C348/60","v":1.1666666666666667}]
[]
["TRÁMITE:","SENESCYT-022-01-01 Habilitación de cuenta en plataforma \"Ser Bachiller\""]
["NO.","ACTIVIDAD","TIEMPO (MINUTOS)"]
[1,"Analizar solicitud y requisitos ",25]
[2,"Validar análisis de habilitación de cuenta",20]
[3,"Habilitar cuenta en plataforma Ser Bachiller ",20]
[4,"Notificar al usuario la resolución del trámite",5]
[null,"SUMATORIA ACTIVIDADES",{"$f":"SUM(C352:C355)","v":70},{"$f":"+C356/60","v":1.1666666666666667}]
[]
[]
["TRÁMITE:","SENESCYT-022-01-02 Habilitación de nota en plataforma \"Ser Bachiller\""]
["NO.","ACTIVIDAD","TIEMPO (MINUTOS)"]
[1,"Analizar solicitud y requisitos ",25]
[2,"Validar análisis de habilitación de nota",20]
[3,"Habilitar nota en plataforma Ser Bachiller ",20]
[4,"Notificar al usuario la resolución del trámite",5]
[null,"SUMATORIA ACTIVIDADES",{"$f":"SUM(C361:C364)","v":70},{"$f":"+C365/60","v":1.1666666666666667}]
[]
[]
["TRÁMITE:","SENESCYT-023-01-01 Inscripción para el acceso a la nivelación general"]
["NO.","ACTIVIDAD","TIEMPO (MINUTOS)"]
[1,"Trámite 100% automatizado "]
[null,"SUMATORIA ACTIVIDADES",{"$f":"SUM(C370:C370)","v":0}]
[]
[]
["TRÁMITE:","SENESCYT-024-01-01 Emisión de títulos de formación técnica y tecnológica de instituciones públicas o particulares"]
["NO.","ACTIVIDAD","TIEMPO (MINUTOS)"]
[1,"Revisar solicitud de trámite en plataforma SIAU online ",10]
[2,"Constatar información en plataforma SNIESE",120]
[3,"Solicitar  impresión de títulos ",15]
[5,"Notificar al usuario la resolución del trámite ",5]
[null,"SUMATORIA ACTIVIDADES",{"$f":"SUM(C376:C379)","v":150},{"$f":"+C380/60","v":2.5}]
[]
[]
["TRÁMITE:","SENESCYT-024-01-02 Certificado de títulos en proceso de emisión de formación técnica y tecnológica de instituciones públicas o particulares"]
["NO.","ACTIVIDAD","TIEMPO (MINUTOS)"]
[1,"Revisar solicitud de trámite en plataforma SIAU online ",10]
[2,"Elaborar Certificado de estado de título",15]
[3,"Notificar al usuario la resolución del trámite ",5]
[null,"SUMATORIA ACTIVIDADES",{"$f":"SUM(C385:C387)","v":30},{"$f":"+C388/60","v":0.5}]
[]
[]
["TRÁMITE:","SENESCYT-025-01-01 Creación de credenciales para Instituciones de Educación Superior (IES)"]
["NO.","ACTIVIDAD","TIEMPO (MINUTOS)"]
[1,"Revisar requisitos ",30]
[2,"Crear perfil  y usuario",240]
[3,"Notificar al usuario la resolución del trámite ",5]
[null,"SUMATORIA ACTIVIDADES",{"$f":"SUM(C393:C395)","v":275},{"$f":"+C396/60","v":4.583333333333333}]
[]
[]
[]
["TRÁMITE:","SENESCYT-025-01-02 Actualización de datos generales para el registro de firmas de las autoridades de las Instituciones de Educación Superior"]
["NO.","ACTIVIDAD","TIEMPO (MINUTOS)"]
[1,"Revisar requisitos ",10]
[2,"Modificar datos de perfil de usuario",180]
[3,"Notificar al usuario la resolución del trámite ",5]
[null,"SUMATORIA ACTIVIDADES",{"$f":"SUM(C402:C404)","v":195},{"$f":"+C405/60","v":3.25}]
[]
[]
["TRÁMITE:","SENESCYT-026-01-01 Atención de solicitudes de acceso a la información pública referente a la educación superior, la ciencia, tecnología e innovación"]
["NO.","ACTIVIDAD","TIEMPO (MINUTOS)"]
[1,"Revisar solicitud de trámite en plataforma SIAU online ",10]
[2,"Elaborar informe con la información solicitada",50]
[3,"Notificar al usuario la resolución del trámite ",5]
[null,"SUMATORIA ACTIVIDADES",{"$f":"SUM(C410:C412)","v":65},{"$f":"+C413/60","v":1.0833333333333333}]
[]
[]
["TRÁMITE:","SENESCYT-027-01-01 Registro de Redes del Sistema de Educación Superior y del Sistema Nacional de Ciencia, Tecnología, Innovación y Saberes Ancestrales"]
["NO.","ACTIVIDAD","TIEMPO (MINUTOS)"]
[1,"Revisar solicitud de trámite en plataforma SIAU online ",10]
[2,"Analizar información ",50]
[3,"Realizar registro de redes ",20]
[4,"Notificar al usuario la resolución del trámite ",5]
[null,"SUMATORIA ACTIVIDADES",{"$f":"SUM(C418:C421)","v":85},{"$f":"+C422/60","v":1.4166666666666667}]
[]
[]
["TRÁMITE:","SENESCYT-028-01-01 Registro de personas naturales relacionadas a la investigación y/o desarrollo tecnológico"]
["NO.","ACTIVIDAD","TIEMPO (MINUTOS)"]
[1,"Revisar solicitud de trámite en plataforma ",10]
[2,"Analizar requisitos",180]
[3,"Registrar a investigador ",20]
[4,"Notificar al usuario la resolución del trámite ",5]
[null,"SUMATORIA ACTIVIDADES",{"$f":"SUM(C427:C430)","v":215},{"$f":"+C431/60","v":3.5833333333333335}]
[]
[]
["TRÁMITE:","SENESCYT-034-01-01 Aprobación de liquidación de becas nacionales e internacionales"]
["NO.","ACTIVIDAD","TIEMPO (MINUTOS)"]
[1,"Revisar solicitud de trámite en plataforma SIAC",10]
[2,"Analizar requisitos",30]
[3,"Generar liquidación de becas nacionales o internacionales",180]
[4,"Notificar al usuario la liquidación de becas nacionales o internacionales",5]
[null,"SUMATORIA ACTIVIDADES",{"$f":"SUM(C436:C439)","v":225},{"$f":"+C440/60","v":3.75}]
[]
[]
["TRÁMITE:","SENESCYT-034-01-02 Aprobación de facilidades de pago a valores adeudados para beneficiarios de becas educativas"]
["NO.","ACTIVIDAD","TIEMPO (MINUTOS)"]
[1,"Revisar solicitud de trámite en plataforma SIAC",10]
[2,"Analizar requisitos",30]
[3,"Generar resolución de aprobación de facilidades de pago a valores adeudados para beneficiarios de becas educativas",60]
[4,"Notificar al usuario la aprobación de facilidades de pago a valores adeudados para beneficiarios de becas educativas",5]
[null,"SUMATORIA ACTIVIDADES",{"$f":"SUM(C445:C448)","v":105},{"$f":"+C449/60","v":1.75}]
[]
[]
["TRÁMITE:","SENESCYT-035-01-01 Autorización de registro de compensación becas internacionales y administración becas otorgadas por el ministerio de salud pública"]
["NO.","ACTIVIDAD","TIEMPO (MINUTOS)"]
[1,"Revisar solicitud de trámite en plataforma SIAC",5]
[2,"Analizar requisitos",20]
[3,"Notificar al usuario la autorización de registro de compensación becas internacionales y administración becas otorgadas por el ministerio de salud pública",5]
[null,"SUMATORIA ACTIVIDADES",{"$f":"SUM(C454:C456)","v":30},{"$f":"+C457/60","v":0.5}]
[]
[]
["TRÁMITE:","SENESCYT-035-01-02 Autorización de cambio o liberación de la entidad auspiciante de becas internacionales"]
["NO.","ACTIVIDAD","TIEMPO (MINUTOS)"]
[1,"Revisar solicitud de trámite en plataforma SIAC",10]
[2,"Analizar requisitos",60]
[3,"Generar resolución, proyecciones y contrato de autorización de cambio o liberación de la entidad auspiciante de becas internacionales",120]
[4,"Realizar la suscripción del contrato de autorización de cambio o liberación de la entidad auspiciante de becas internacionales",10]
[5,"Notificar la providencia, las proyecciones y el contrato de autorización de cambio o liberación de la entidad auspiciante de becas internacionales",5]
[null,"SUMATORIA ACTIVIDADES",{"$f":"SUM(C462:C466)","v":205},{"$f":"+C467/60","v":3.4166666666666665}]
[]
[]
["TRÁMITE:","SENESCYT-035-01-03 Autorización de diferimiento del período de compensación de becas"]
["NO.","ACTIVIDAD","TIEMPO (MINUTOS)"]
[1,"Revisar solicitud de trámite en plataforma SIAC",10]
[2,"Analizar requisitos",60]
[3,"Generar resolución, proyecciones y contrato de autorización de diferimiento del período de compensación de becas",120]
[4,"Realizar la suscripción del contrato de autorización de diferimiento del período de compensación de becas",10]
[5,"Notificar la providencia, las proyecciones y el contrato de autorización de diferimiento del período de compensación de becas",5]
[null,"SUMATORIA ACTIVIDADES",{"$f":"SUM(C472:C476)","v":205},{"$f":"+C477/60","v":3.4166666666666665}]
[]
[]
["TRÁMITE:","SENESCYT-035-01-04 Autorización de cambio de período de compensación y otros tipos de compensación para beneficiarios de becas educativas "]
["NO.","ACTIVIDAD","TIEMPO (MINUTOS)"]
[1,"Revisar solicitud de trámite en plataforma SIAC",10]
[2,"Analizar requisitos",60]
[3,"Generar resolución, proyecciones y contrato de autorización de cambio de período de compensación y otros tipos de compensación para beneficiarios de becas educativas ",120]
[4,"Realizar la suscripción del contrato de autorización de cambio de período de compensación y otros tipos de compensación para beneficiarios de becas educativas ",10]
[5,"Notificar la providencia, las proyecciones y el contrato de autorización de cambio de período de compensación y otros tipos de compensación para beneficiarios de becas educativas ",5]
[null,"SUMATORIA ACTIVIDADES",{"$f":"SUM(C482:C486)","v":205},{"$f":"+C487/60","v":3.4166666666666665}]
[]
[]
["TRÁMITE:","SENESCYT-035-01-05 Autorización de prórroga de plazo para ejecución de proyecto para beneficiarios de becas"]
["NO.","ACTIVIDAD","TIEMPO (MINUTOS)"]
[1,"Revisar solicitud de trámite en plataforma SIAC",10]
[2,"Analizar requisitos",60]
[3,"Generar resolución, proyecciones y contrato de autorización de prórroga de plazo para ejecución de proyecto para beneficiarios de becas",120]
[4,"Realizar la suscripción del contrato de autorización de prórroga de plazo para ejecución de proyecto para beneficiarios de becas",10]
[5,"Notificar la providencia, las proyecciones y el contrato de autorización de prórroga de plazo para ejecución de proyecto para beneficiarios de becas",5]
[null,"SUMATORIA ACTIVIDADES",{"$f":"SUM(C492:C496)","v":205},{"$f":"+C497/60","v":3.4166666666666665}]
[]
[]
["TRÁMITE:","SENESCYT-036-01-01 Aprobación de facilidades de pago en etapa coactiva"]
["NO.","ACTIVIDAD","TIEMPO (MINUTOS)"]
[1,"Solicitar información sobre el procedimiento coactivo al ciudadano",5]
[2,"Realizar el  cálculo de convenio de pago e informar el valor a cancelar del abono inicial y la cuota mensual al ciudadano",10]
[3,"Notificar la aceptación del convenio de pago al ciudadano por correo electrónico",5]
[4,"Realizar la suscripción del convenio de pago con el ciudadano",10]
[5,"Notificar la providencia y el convenio de pago suscrito a través de correo electrónico.",5]
[null,"SUMATORIA ACTIVIDADES",{"$f":"SUM(C502:C506)","v":35},{"$f":"+C507/60","v":0.58333333333333337}]
[]
[]
["TRÁMITE:","SENESCYT-037-01-01 Emisión de certificados relacionados con crédito educativo"]
["NO.","ACTIVIDAD","TIEMPO (MINUTOS)"]
[1,"Trámite 100% automatizado "]
[null,"SUMATORIA ACTIVIDADES",{"$f":"SUM(B512:B512)","v":0}]
[]
[]
["TRÁMITE:","SENESCYT-037-01-02 Otorgamiento de información académica de crédito educativo "]
["NO.","ACTIVIDAD","TIEMPO (MINUTOS)"]
[1,"Revisar solicitud",5]
[2,"Verificar datos en sistema",120]
[3,"Entregar información académica de crédito educativo",5]
[null,"SUMATORIA ACTIVIDADES",{"$f":"SUM(C518:C520)","v":130},{"$f":"+C521/60","v":2.1666666666666665}]
[]
[]
["TRÁMITE:","SENESCYT-038-01-01 Emisión de reportes académicos de crédito educativo"]
["NO.","ACTIVIDAD","TIEMPO (MINUTOS)"]
[1,"Revisar solicitud",5]
[2,"Verificar datos en sistema",5]
[3,"Entregar información académica de crédito educativo",5]
[null,"SUMATORIA ACTIVIDADES",{"$f":"SUM(C526:C528)","v":15},{"$f":"+C529/60","v":0.25}]
[]
[]
["TRÁMITE:","SENESCYT-039-01-01 Aprobación de desembolso, reembolso o adelanto de desembolso de crédito educativo "]
["NO.","ACTIVIDAD","TIEMPO (MINUTOS)"]
[1,"Revisar solicitud y requisitos",15]
[2,"Ingresar datos en sistemas de crédito",10]
[3,"Actualizar expediente digital",10]
[4,"Generar la solicitud de desembolsos",5]
[5,"Aceptar solicitud",5]
[6,"Generar y remitir reporte diario de producción",10]
[7,"Analizar y consolidar desembolsos a nivel nacional",15]
[8,"Generar y Cargar archivos al buzón SFTP",5]
[9,"Comunicar al Banco del Pacífico S.A.",5]
[10,"Cargar resultados de desembolsos",5]
[11,"Enviar detalle de desembolsos",5]
[12,"Recibir y validar detalle de desembolsos",10]
[13,"Revisar Sistemas",10]
[14,"Notificar al usuario la aprobación de desembolso, reembolso o adelanto de desembolso de crédito educativo ",5]
[null,"SUMATORIA ACTIVIDADES",{"$f":"SUM(C534:C547)","v":115},{"$f":"+C548/60","v":1.9166666666666667}]
[]
[]
["TRÁMITE:","SENESCYT-040-01-01 Otorgamiento de prórroga académica por crédito educativo"]
["NO.","ACTIVIDAD","TIEMPO (MINUTOS)"]
[1,"Revisar solicitud y requisitos",15]
[2,"Elaborar el Informe Técnico y Resolución",90]
[3,"Notificar Resolución de otorgamiento de prórroga académica por crédito educativo",5]
[null,"SUMATORIA ACTIVIDADES",{"$f":"SUM(C553:C555)","v":110},{"$f":"+C556/60","v":1.8333333333333333}]
[]
[]
["TRÁMITE:","SENESCYT-040-01-02 Aprobación resolución de actualización de datos de la persona beneficiaria de crédito educativo"]
["NO.","ACTIVIDAD","TIEMPO (MINUTOS)"]
[1,"Revisar solicitud y requisitos",15]
[2,"Elaborar el Informe Técnico y Resolución",90]
[3,"Notificar Resolución de actualización de datos de la persona beneficiaria de crédito educativo",5]
[null,"SUMATORIA ACTIVIDADES",{"$f":"SUM(C561:C563)","v":110},{"$f":"+C564/60","v":1.8333333333333333}]
[]
[]
["TRÁMITE:","SENESCYT-040-01-03 Aprobación resolución de suspensión de desembolsos de crédito educativo"]
["NO.","ACTIVIDAD","TIEMPO (MINUTOS)"]
[1,"Revisar solicitud y requisitos",15]
[2,"Elaborar el Informe Técnico y Resolución",90]
[3,"Notificar Resolución de suspensión de desembolsos de crédito educativo",5]
[null,"SUMATORIA ACTIVIDADES",{"$f":"SUM(C569:C571)","v":110},{"$f":"+C572/60","v":1.8333333333333333}]
[]
[]
["TRÁMITE:","SENESCYT-040-01-04 Aprobación resolución de terminación del contrato de crédito educativo "]
["NO.","ACTIVIDAD","TIEMPO (MINUTOS)"]
[1,"Revisar solicitud y requisitos",15]
[2,"Elaborar el Informe Técnico y Resolución",90]
[3,"Notificar Resolución de terminación del contrato de crédito educativo ",5]
[null,"SUMATORIA ACTIVIDADES",{"$f":"SUM(C577:C579)","v":110},{"$f":"+C580/60","v":1.8333333333333333}]
[]
[]
["TRÁMITE:","SENESCYT-041-01-01 Aprobación de legalización de contrato de becas nacionales e internacionales"]
["NO.","ACTIVIDAD","TIEMPO (MINUTOS)"]
[1,"Notificar la adjudicación de beca nacional o internacional a través del Sistema Institucional de Becas y/o correo electrónico.",5]
[2,"Analizar requisitos",30]
[3,"Generar resolución, proyecciones y  contrato de beca nacional o internacional",70]
[4,"Realizar la suscripción del contrato  de beca nacional o internacional",10]
[5,"Notificar la providencia, las proyecciones y el contrato  de beca nacional o internacional",5]
[null,"SUMATORIA ACTIVIDADES",{"$f":"SUM(C585:C589)","v":120},{"$f":"+C590/60","v":2}]
[]
[]
["TRÁMITE:","SENESCYT-042-01-01 Aprobación de postulación a becas nacionales e internacionales"]
["NO.","ACTIVIDAD","TIEMPO (MINUTOS)"]
[1,"Revisar y analizar los requisitos cargados por el postulante en el Sistema Institucional de Becas.",240]
[2,"Notificar la adjudicación de la beca nacional o internacional",5]
[null,"SUMATORIA ACTIVIDADES",{"$f":"SUM(C595:C596)","v":245},{"$f":"+C597/60","v":4.083333333333333}]
[]
[]
["TRÁMITE:","SENESCYT-043-01-01 Autorización de desembolso de becas nacionales e internacionales a partir de segundo pago"]
["NO.","ACTIVIDAD","TIEMPO (MINUTOS)"]
[1,"Revisar y analizar los requisitos cargados en el Sistema Institucional de Becas",30]
[2,"Generar el desembolso de beca nacional o internacional",60]
[3,"Notificar la realización del desembolso de beca nacional o internacional",5]
[null,"SUMATORIA ACTIVIDADES",{"$f":"SUM(C602:C604)","v":95},{"$f":"+C605/60","v":1.5833333333333333}]
[]
[]
["TRÁMITE:","SENESCYT-044-01-01 Aprobación de cambio de condiciones contractuales de beca nacional o internacional"]
["NO.","ACTIVIDAD","TIEMPO (MINUTOS)"]
[1,"Revisar solicitud de trámite en plataforma SIAC",10]
[2,"Analizar requisitos",60]
[3,"Generar resolución, proyecciones y contrato de aprobación de cambio de condiciones contractuales de beca nacional o internacional",90]
[4,"Realizar la suscripción del contrato de aprobación de cambio de condiciones contractuales de beca nacional o internacional",10]
[5,"Notificar la providencia, las proyecciones y el contrato de aprobación de cambio de condiciones contractuales de beca nacional o internacional",5]
[null,"SUMATORIA ACTIVIDADES",{"$f":"SUM(C610:C614)","v":175},{"$f":"+C615/60","v":2.9166666666666665}]
[]
[]
["TRÁMITE:","SENESCYT-044-01-02 Autorización de cambio de condiciones contractuales antes de la firma de beca "]
["NO.","ACTIVIDAD","TIEMPO (MINUTOS)"]
[1,"Revisar solicitud de trámite en plataforma SIAC",10]
[2,"Analizar requisitos",60]
[3,"Generar resolución, proyecciones y contrato de beca nacional o internacional",60]
[4,"Realizar la suscripción del contrato de beca nacional o internacional",10]
[5,"Notificar la providencia, las proyecciones y el contrato de beca nacional o internacional",5]
[null,"SUMATORIA ACTIVIDADES",{"$f":"SUM(C620:C624)","v":145},{"$f":"+C625/60","v":2.4166666666666665}]
[]
[]
["TRÁMITE:","SENESCYT-044-01-03 Aprobación de resolución a la solicitud de renuncia a la beca educativa (contrato suscrito sin desembolsos)"]
["NO.","ACTIVIDAD","TIEMPO (MINUTOS)"]
[1,"Revisar solicitud de trámite en plataforma SIAC",10]
[2,"Analizar requisitos",30]
[3,"Generar resolución de aprobación de renuncia a la beca educativa",60]
[4,"Notificar al usuario la resolución de aprobación de renuncia a la beca educativa",10]
[null,"SUMATORIA ACTIVIDADES",{"$f":"SUM(C630:C633)","v":110},{"$f":"+C634/60","v":1.8333333333333333}]
[]
[]
["TRÁMITE:","SENESCYT-044-02-01 Autorización de prórroga de plazo de estudios para beneficiarios de becas educativas"]
["NO.","ACTIVIDAD","TIEMPO (MINUTOS)"]
[1,"Revisar solicitud de trámite en plataforma SIAC",10]
[2,"Analizar requisitos",60]
[3,"Generar resolución, proyecciones y contrato modificatorio de financiamiento de beca adicional",120]
[4,"Realizar la suscripción del contrato de modificatorio de financiamiento de beca adicional",10]
[5,"Notificar la providencia, las proyecciones y el contrato modificatorio de financiamiento de beca adicional",5]
[null,"SUMATORIA ACTIVIDADES",{"$f":"SUM(C639:C643)","v":205},{"$f":"+C644/60","v":3.4166666666666665}]
[]
[]
["TRÁMITE:","SENESCYT-044-02-02 Aprobación resolución de reactivación de beca educativa"]
["NO.","ACTIVIDAD","TIEMPO (MINUTOS)"]
[1,"Revisar solicitud de trámite en plataforma SIAC",10]
[2,"Analizar requisitos",60]
[3,"Generar resolución, proyecciones y contrato modificatorio de financiamiento para reactivación de una beca nacional",90]
[4,"Realizar la suscripción del contrato de modificatorio de financiamiento para reactivación de una beca nacional",10]
[5,"Notificar la providencia, las proyecciones y el contrato modificatorio de financiamiento para reactivación de una beca nacional",5]
[null,"SUMATORIA ACTIVIDADES",{"$f":"SUM(C649:C653)","v":175},{"$f":"+C654/60","v":2.9166666666666665}]
[]
[]
["TRÁMITE:","SENESCYT-044-02-03 Aprobación resolución a la solicitud de terminación de contrato de becas"]
["NO.","ACTIVIDAD","TIEMPO (MINUTOS)"]
[1,"Revisar solicitud de trámite en plataforma SIAC",10]
[2,"Analizar requisitos",45]
[3,"Generar resolución de terminación de contrato de becas",60]
[4,"Notificar al usuario la resolución de terminación de contrato de becas",10]
[null,"SUMATORIA ACTIVIDADES",{"$f":"SUM(C659:C662)","v":125},{"$f":"+C663/60","v":2.0833333333333335}]
[]
[]
["TRÁMITE:","SENESCYT-044-02-04 Aprobación resolución a la solicitud de suspensión temporal de estudios para beneficiarios de becas "]
["NO.","ACTIVIDAD","TIEMPO (MINUTOS)"]
[1,"Revisar solicitud de trámite en plataforma SIAC",10]
[2,"Analizar requisitos",60]
[3,"Generar resolución, proyecciones y contrato modificatorio de financiamiento de beca nacional, para efectuar su suspensión temporal",90]
[4,"Realizar la suscripción del contrato de modificatorio de financiamiento de beca nacional, para efectuar su suspensión temporal",10]
[5,"Notificar la providencia, las proyecciones y el modificatorio de financiamiento de beca nacional, para efectuar su suspensión temporal",5]
[null,"SUMATORIA ACTIVIDADES",{"$f":"SUM(C668:C672)","v":175},{"$f":"+C673/60","v":2.9166666666666665}]
[]
[]
["TRÁMITE:","SENESCYT-045-01-01 Emisión de certificado de ser beneficiario de becas nacionales e internacionales"]
["NO.","ACTIVIDAD","TIEMPO (MINUTOS)"]
[1,"Trámite 100% automatizado "]
[null,"SUMATORIA ACTIVIDADES",{"$f":"SUM(C678:C678)","v":0}]
[]
[]
["TRÁMITE:","SENESCYT-045-02-01 Atención a la solicitud de apelación al resultado de la postulación de becas nacionales e internacionales"]
["NO.","ACTIVIDAD","TIEMPO (MINUTOS)"]
[1,"Revisar solicitud de trámite en plataforma SIAC",20]
[2,"Generar resolución de apelación al resultado de la postulación de becas nacionales e internacionales",90]
[5,"Notificar al usuario la resolución de apelación al resultado de la postulación de becas nacionales e internacionales",5]
[null,"SUMATORIA ACTIVIDADES",{"$f":"SUM(C684:C686)","v":115},{"$f":"+C687/60","v":1.9166666666666667}]

{"sheet":"TIEMPO DE RESPUESTA","index":6,"n_rows":83,"n_cols":4,"rows_kept":83,"cut":false,"hidden":false,"merged":[[0,0,0,3],[1,0,1,3]]}
["PRIORIZACIÓN DE TRÁMITES ADMINISTRATIVOS"]
["TIEMPO DE RESPUESTA"]
[]
["IDENTIFICADOR","TRÁMITE","TIEMPO RESPUESTA (horas laborables)","PUNTUACIÓN"]
["SENESCYT-001-01-01","Registro de carreras y programas en estado no vigente y de cuarto nivel",240,30]
["SENESCYT-001-02-01","Registro de títulos históricos",240,30]
["SENESCYT-002-01-01","Reconocimiento general de títulos del extranjero",240,30]
["SENESCYT-002-01-02","Reconocimiento de títulos profesionales o grados académicos en el campo de la salud",360,30]
["SENESCYT-002-01-03","Reconocimiento de títulos doctorales del extrajero (PhD.)",360,30]
["SENESCYT-003-01-01","Certificación de acreditación de las instituciones de educación superior nacionales",0.08,0]
["SENESCYT-004-01-01","Modificación de registro de títulos nacionales de Instituciones de Educación Superior cerradas",80,30]
["SENESCYT-004-01-02","Modificación del nivel de formación de los títulos de tecnólogos médicos al tercer nivel y de doctores al cuarto nivel",80,30]
["SENESCYT-004-02-01","Modificación de registro de títulos extranjero para PhD",80,30]
["SENESCYT-004-02-02","Modificación de registro de títulos extranjero de títulos propios",80,30]
["SENESCYT-004-02-03","Modificación de registro de títulos extranjero de campos de información académica general",80,30]
["SENESCYT-004-02-04","Modificación de registro de títulos extranjero de campos de información personal",80,30]
["SENESCYT-005-01-01","Anulaciones de registro de títulos nacionales",240,30]
["SENESCYT-005-02-01","Anulaciones de registro de títulos del extranjero",720,30]
["SENESCYT-006-01-01","Modificación de datos de carreras y programas de estudio",120,30]
["SENESCYT-007-01-01","Exoneración de derechos aduaneros para instituciones de educación superior",120,30]
["SENESCYT-008-01-01","Evaluación de IES extranjeras para inclusión o exclusión en el listado",80,30]
["SENESCYT-009-01-01","Hojas de vida de becarios para procesos de selección",64,30]
["SENESCYT-010-01-01","Vinculación de becarios a la plataforma de transferencia del conocimiento \"Ensamble\"",8,0]
["SENESCYT-010-02-01","Registro de empresas públicas y privadas en la plataforma de transferencia del conocimiento \"Ensamble\"",8,0]
["SENESCYT-011-01-01","Acreditación de investigadores/as científicos/as",80,30]
["SENESCYT-012-01-01","Categorización como Investigador Principal 4",80,30]
["SENESCYT-012-01-02","Categorización como Investigador Principal 3",80,30]
["SENESCYT-012-01-03","Categorización como Investigador Principal 2",80,30]
["SENESCYT-012-01-04","Categorización como Investigador Agregado 3",80,30]
["SENESCYT-012-01-05","Categorización como Investigador Agregado 2",80,30]
["SENESCYT-012-01-06","Categorización como Investigador Agregado 1",80,30]
["SENESCYT-012-01-07","Categorización como Investigador Auxiliar 2",80,30]
["SENESCYT-012-01-08","Categorización como Investigador Auxiliar 1",80,30]
["SENESCYT-012-01-09","Categorización como Investigador Principal 1",80,30]
["SENESCYT-013-01-01","Asignación del código ISSN (International Standard Serial Number)",80,30]
["SENESCYT-013-01-02","Actualización de información del código ISSN",80,30]
["SENESCYT-014-01-01","Evaluación o revaluación Latindex para publicaciones científicas",80,30]
["SENESCYT-014-01-02","Actualización de información de la publicación Latindex",80,30]
["SENESCYT-017-01-01","Postulación de proyectos innovadores y la asignación de capital semilla",480,30]
["SENESCYT-018-01-01","Acreditación de espacios y agentes de innovación",240,30]
["SENESCYT-019-01-01","Registro de espacios de trabajo colaborativo",120,30]
["SENESCYT-020-01-01","Obtención de cupos para el acceso a la educación superior para ecuatorianos residentes y no residentes en el país y para extranjeros residentes en el país",120,30]
["SENESCYT-021-01-01","Certificado de notas obtenidas en el examen para el acceso a la educación superior",0.08,0]
["SENESCYT-021-01-02","Certificado de haber aceptado o no haber aceptado un cupo en el Sistema Nacional de Nivelación y Admisión",0.08,0]
["SENESCYT-021-01-03","Certificado de pertenencia al grupo de alto rendimiento (GAR) programa internacional",40,0]
["SENESCYT-022-01-01","Habilitación de cuenta en plataforma \"Ser Bachiller\"",88,30]
["SENESCYT-022-01-02","Habilitación de nota en plataforma \"Ser Bachiller\"",88,30]
["SENESCYT-023-01-01","Inscripción para el acceso a la nivelación general",0.25,0]
["SENESCYT-024-01-01","Emisión de títulos de formación técnica y tecnológica de instituciones públicas o particulares",120,30]
["SENESCYT-024-01-02","Certificado de títulos en proceso de emisión de formación técnica y tecnológica de instituciones públicas o particulares",120,30]
["SENESCYT-025-01-01","Creación de credenciales para Instituciones de Educación Superior (IES)",120,30]
["SENESCYT-025-01-02","Actualización de datos generales para el registro de firmas de las autoridades de las Instituciones de Educación Superior.",40,0]
["SENESCYT-026-01-01","Atención de solicitudes de acceso a la información pública referente a la educación superior, la ciencia, tecnología e innovación",80,30]
["SENESCYT-027-01-01","Registro de Redes del Sistema de Educación Superior y del Sistema Nacional de Ciencia, Tecnología, Innovación y Saberes Ancestrales",40,0]
["SENESCYT-028-01-01","Registro de personas naturales relacionadas a la investigación y/o desarrollo tecnológico",80,30]
["SENESCYT-034-01-01","Aprobación de liquidación de becas nacionales e internacionales",576,30]
["SENESCYT-034-01-02","Aprobación de facilidades de pago a valores adeudados para beneficiarios de becas educativas",120,30]
["SENESCYT-035-01-01","Autorización de registro de compensación becas internacionales y administración becas otorgadas por el ministerio de salud pública",240,30]
["SENESCYT-035-01-02","Autorización de cambio o liberación de la entidad auspiciante de becas internacionales",240,30]
["SENESCYT-035-01-03","Autorización de diferimiento del período de compensación de becas",240,30]
["SENESCYT-035-01-04","Autorización de cambio de período de compensación y otros tipos de compensación para beneficiarios de becas educativas ",240,30]
["SENESCYT-035-01-05","Autorización de prórroga de plazo para ejecución de proyecto para beneficiarios de becas",240,30]
["SENESCYT-036-01-01","Aprobación de facilidades de pago en etapa coactiva",40,0]
["SENESCYT-037-01-01","Emisión de certificados relacionados con crédito educativo",0.08,0]
["SENESCYT-037-01-02","Otorgamiento de información académica de crédito educativo ",8,0]
["SENESCYT-038-01-01","Emisión de reportes académicos de crédito educativo",8,0]
["SENESCYT-039-01-01","Aprobación de desembolso, reembolso o adelanto de desembolso  de crédito educativo ",8,0]
["SENESCYT-040-01-01","Otorgamiento de prórroga académica por crédito educativo",40,0]
["SENESCYT-040-01-02","Aprobación resolución de actualización de datos de la persona beneficiaria de crédito educativo",40,0]
["SENESCYT-040-01-03","Aprobación resolución de suspensión de desembolsos de crédito educativo",120,30]
["SENESCYT-040-01-04","Aprobación resolución de terminación del contrato de crédito educativo ",40,0]
["SENESCYT-041-01-01","Aprobación de legalización de contrato de becas nacionales e internacionales",2,0]
["SENESCYT-042-01-01","Aprobación de postulación a becas nacionales e internacionales",480,30]
["SENESCYT-043-01-01","Autorización de desembolso de becas nacionales e internacionales a partir de segundo pago",120,30]
["SENESCYT-044-01-01","Aprobación de cambio de condiciones contractuales  de beca nacional o internacional",480,30]
["SENESCYT-044-01-02","Autorización de cambio de condiciones contractuales antes de la firma de beca ",480,30]
["SENESCYT-044-01-03","Aprobación de resolución a la solicitud de renuncia a la beca educativa (contrato suscrito sin desembolsos)",360,30]
["SENESCYT-044-02-01","Autorización de prórroga de plazo de estudios para beneficiarios de becas educativas",480,30]
["SENESCYT-044-02-02","Aprobación resolución de reactivación de beca educativa",480,30]
["SENESCYT-044-02-03","Aprobación resolución a la solicitud de terminación de contrato de becas",480,30]
["SENESCYT-044-02-04","Aprobación resolución a la solicitud de suspensión temporal de estudios para beneficiarios de becas ",480,30]
["SENESCYT-045-01-01","Emisión de certificado de ser beneficiario de becas nacionales e internacionales",0.08,0]
["SENESCYT-045-02-01","Atención a la solicitud de apelación al resultado de la postulación de becas nacionales e internacionales",360,30]

{"sheet":"CANAL ATENCIÓN","index":7,"n_rows":83,"n_cols":12,"rows_kept":83,"cut":false,"hidden":false,"merged":[[0,0,0,3],[1,0,1,3]]}
["PRIORIZACIÓN DE TRÁMITES ADMINISTRATIVOS"]
["CANAL DE ATENCIÓN"]
[null,null,null,null,null,null,null,null,"Totalmente en Línea",null,null,0]
["IDENTIFICADOR","TRÁMITE","CANAL ATENCIÓN","PUNTUACIÓN",null,null,null,null,"No se completa totalmente en línea.",null,null,10]
["SENESCYT-001-01-01","Registro de carreras y programas en estado no vigente y de cuarto nivel","Totalmente en Línea",0]
["SENESCYT-001-02-01","Registro de títulos históricos","Totalmente en Línea",0]
["SENESCYT-002-01-01","Reconocimiento general de títulos del extranjero","No se completa totalmente en línea.",10]
["SENESCYT-002-01-02","Reconocimiento de títulos profesionales o grados académicos en el campo de la salud","No se completa totalmente en línea.",10]
["SENESCYT-002-01-03","Reconocimiento de títulos doctorales del extrajero (PhD.)","No se completa totalmente en línea.",10]
["SENESCYT-003-01-01","Certificación de acreditación de las instituciones de educación superior nacionales","Totalmente en Línea",0]
["SENESCYT-004-01-01","Modificación de registro de títulos nacionales de Instituciones de Educación Superior cerradas","Totalmente en Línea",0]
["SENESCYT-004-01-02","Modificación del nivel de formación de los títulos de tecnólogos médicos al tercer nivel y de doctores al cuarto nivel","Totalmente en Línea",0]
["SENESCYT-004-02-01","Modificación de registro de títulos extranjero para PhD","Totalmente en Línea",0]
["SENESCYT-004-02-02","Modificación de registro de títulos extranjero de títulos propios","Totalmente en Línea",0]
["SENESCYT-004-02-03","Modificación de registro de títulos extranjero de campos de información académica general","Totalmente en Línea",0]
["SENESCYT-004-02-04","Modificación de registro de títulos extranjero de campos de información personal","Totalmente en Línea",0]
["SENESCYT-005-01-01","Anulaciones de registro de títulos nacionales","Totalmente en Línea",0]
["SENESCYT-005-02-01","Anulaciones de registro de títulos del extranjero","Totalmente en Línea",0]
["SENESCYT-006-01-01","Modificación de datos de carreras y programas de estudio","Totalmente en Línea",0]
["SENESCYT-007-01-01","Exoneración de derechos aduaneros para instituciones de educación superior","Totalmente en Línea",0]
["SENESCYT-008-01-01","Evaluación de IES extranjeras para inclusión o exclusión en el listado","Totalmente en Línea",0]
["SENESCYT-009-01-01","Hojas de vida de becarios para procesos de selección","Totalmente en Línea",0]
["SENESCYT-010-01-01","Vinculación de becarios a la plataforma de transferencia del conocimiento \"Ensamble\"","Totalmente en Línea",0]
["SENESCYT-010-02-01","Registro de empresas públicas y privadas en la plataforma de transferencia del conocimiento \"Ensamble\"","Totalmente en Línea",0]
["SENESCYT-011-01-01","Acreditación de investigadores/as científicos/as","Totalmente en Línea",0]
["SENESCYT-012-01-01","Categorización como Investigador Principal 4","Totalmente en Línea",0]
["SENESCYT-012-01-02","Categorización como Investigador Principal 3","Totalmente en Línea",0]
["SENESCYT-012-01-03","Categorización como Investigador Principal 2","Totalmente en Línea",0]
["SENESCYT-012-01-04","Categorización como Investigador Agregado 3","Totalmente en Línea",0]
["SENESCYT-012-01-05","Categorización como Investigador Agregado 2","Totalmente en Línea",0]
["SENESCYT-012-01-06","Categorización como Investigador Agregado 1","Totalmente en Línea",0]
["SENESCYT-012-01-07","Categorización como Investigador Auxiliar 2","Totalmente en Línea",0]
["SENESCYT-012-01-08","Categorización como Investigador Auxiliar 1","Totalmente en Línea",0]
["SENESCYT-012-01-09","Categorización como Investigador Principal 1","Totalmente en Línea",0]
["SENESCYT-013-01-01","Asignación del código ISSN (International Standard Serial Number)","Totalmente en Línea",0]
["SENESCYT-013-01-02","Actualización de información del código ISSN","Totalmente en Línea",0]
["SENESCYT-014-01-01","Evaluación o revaluación Latindex para publicaciones científicas","Totalmente en Línea",0]
["SENESCYT-014-01-02","Actualización de información de la publicación Latindex","Totalmente en Línea",0]
["SENESCYT-017-01-01","Postulación de proyectos innovadores y la asignación de capital semilla","Totalmente en Línea",0]
["SENESCYT-018-01-01","Acreditación de espacios y agentes de innovación","Totalmente en Línea",0]
["SENESCYT-019-01-01","Registro de espacios de trabajo colaborativo","Totalmente en Línea",0]
["SENESCYT-020-01-01","Obtención de cupos para el acceso a la educación superior para ecuatorianos residentes y no residentes en el país y para extranjeros residentes en el país","Totalmente en Línea",0]
["SENESCYT-021-01-01","Certificado de notas obtenidas en el examen para el acceso a la educación superior","Totalmente en Línea",0]
["SENESCYT-021-01-02","Certificado de haber aceptado o no haber aceptado un cupo en el Sistema Nacional de Nivelación y Admisión","Totalmente en Línea",0]
["SENESCYT-021-01-03","Certificado de pertenencia al grupo de alto rendimiento (GAR) programa internacional","Totalmente en Línea",0]
["SENESCYT-022-01-01","Habilitación de cuenta en plataforma \"Ser Bachiller\"","Totalmente en Línea",0]
["SENESCYT-022-01-02","Habilitación de nota en plataforma \"Ser Bachiller\"","Totalmente en Línea",0]
["SENESCYT-023-01-01","Inscripción para el acceso a la nivelación general","Totalmente en Línea",0]
["SENESCYT-024-01-01","Emisión de títulos de formación técnica y tecnológica de instituciones públicas o particulares","Totalmente en Línea",0]
["SENESCYT-024-01-02","Certificado de títulos en proceso de emisión de formación técnica y tecnológica de instituciones públicas o particulares","Totalmente en Línea",0]
["SENESCYT-025-01-01","Creación de credenciales para Instituciones de Educación Superior (IES)","Totalmente en Línea",0]
["SENESCYT-025-01-02","Actualización de datos generales para el registro de firmas de las autoridades de las Instituciones de Educación Superior.","Totalmente en Línea",0]
["SENESCYT-026-01-01","Atención de solicitudes de acceso a la información pública referente a la educación superior, la ciencia, tecnología e innovación","Totalmente en Línea",0]
["SENESCYT-027-01-01","Registro de Redes del Sistema de Educación Superior y del Sistema Nacional de Ciencia, Tecnología, Innovación y Saberes Ancestrales","Totalmente en Línea",0]
["SENESCYT-028-01-01","Registro de personas naturales relacionadas a la investigación y/o desarrollo tecnológico","Totalmente en Línea",0]
["SENESCYT-034-01-01","Aprobación de liquidación de becas nacionales e internacionales","Totalmente en Línea",0]
["SENESCYT-034-01-02","Aprobación de facilidades de pago a valores adeudados para beneficiarios de becas educativas","Totalmente en Línea",0]
["SENESCYT-035-01-01","Autorización de registro de compensación becas internacionales y administración becas otorgadas por el ministerio de salud pública","Totalmente en Línea",0]
["SENESCYT-035-01-02","Autorización de cambio o liberación de la entidad auspiciante de becas internacionales","No se completa totalmente en línea.",10]
["SENESCYT-035-01-03","Autorización de diferimiento del período de compensación de becas","No se completa totalmente en línea.",10]
["SENESCYT-035-01-04","Autorización de cambio de período de compensación y otros tipos de compensación para beneficiarios de becas educativas ","No se completa totalmente en línea.",10]
["SENESCYT-035-01-05","Autorización de prórroga de plazo para ejecución de proyecto para beneficiarios de becas","No se completa totalmente en línea.",10]
["SENESCYT-036-01-01","Aprobación de facilidades de pago en etapa coactiva","No se completa totalmente en línea.",10]
["SENESCYT-037-01-01","Emisión de certificados relacionados con crédito educativo","Totalmente en Línea",0]
["SENESCYT-037-01-02","Otorgamiento de información académica de crédito educativo ","Totalmente en Línea",0]
["SENESCYT-038-01-01","Emisión de reportes académicos de crédito educativo","Totalmente en Línea",0]
["SENESCYT-039-01-01","Aprobación de desembolso, reembolso o adelanto de desembolso  de crédito educativo ","Totalmente en Línea",0]
["SENESCYT-040-01-01","Otorgamiento de prórroga académica por crédito educativo","Totalmente en Línea",0]
["SENESCYT-040-01-02","Aprobación resolución de actualización de datos de la persona beneficiaria de crédito educativo","Totalmente en Línea",0]
["SENESCYT-040-01-03","Aprobación resolución de suspensión de desembolsos de crédito educativo","Totalmente en Línea",0]
["SENESCYT-040-01-04","Aprobación resolución de terminación del contrato de crédito educativo ","Totalmente en Línea",0]
["SENESCYT-041-01-01","Aprobación de legalización de contrato de becas nacionales e internacionales","No se completa totalmente en línea.",10]
["SENESCYT-042-01-01","Aprobación de postulación a becas nacionales e internacionales","Totalmente en Línea",0]
["SENESCYT-043-01-01","Autorización de desembolso de becas nacionales e internacionales a partir de segundo pago","Totalmente en Línea",0]
["SENESCYT-044-01-01","Aprobación de cambio de condiciones contractuales  de beca nacional o internacional","No se completa totalmente en línea.",10]
["SENESCYT-044-01-02","Autorización de cambio de condiciones contractuales antes de la firma de beca ","No se completa totalmente en línea.",10]
["SENESCYT-044-01-03","Aprobación de resolución a la solicitud de renuncia a la beca educativa (contrato suscrito sin desembolsos)","Totalmente en Línea",0]
["SENESCYT-044-02-01","Autorización de prórroga de plazo de estudios para beneficiarios de becas educativas","No se completa totalmente en línea.",10]
["SENESCYT-044-02-02","Aprobación resolución de reactivación de beca educativa","No se completa totalmente en línea.",10]
["SENESCYT-044-02-03","Aprobación resolución a la solicitud de terminación de contrato de becas","Totalmente en Línea",0]
["SENESCYT-044-02-04","Aprobación resolución a la solicitud de suspensión temporal de estudios para beneficiarios de becas ","No se completa totalmente en línea.",10]
["SENESCYT-045-01-01","Emisión de certificado de ser beneficiario de becas nacionales e internacionales","Totalmente en Línea",0]
["SENESCYT-045-02-01","Atención a la solicitud de apelación al resultado de la postulación de becas nacionales e internacionales","No se completa totalmente en línea.",10]

{"sheet":"RESUMEN","index":8,"n_rows":82,"n_cols":25,"rows_kept":82,"cut":false,"hidden":false,"merged":[[1,9,1,10],[1,11,1,12],[1,13,2,13],[0,2,0,6],[0,7,0,12],[1,5,2,5],[1,6,2,6],[1,7,1,8],[1,0,2,0],[1,1,2,1],[1,2,2,2],[1,3,2,3],[1,4,2,4]]}
[null,null,"BÁSICOS",null,null,null,null,"ADICIONALES"]
["ID trámite","Nombre del trámite","Demanda","Quejas","Costo para administración","Tiempo de respuesta","Canal de atención","Necesidades ciudadanas",null,"Susceptibilidad a corrupción",null,"Volumen de devoluciones",null,"PUNTAJE TOTAL"]
[null,null,null,null,null,null,null,"Criterio","Puntuación","Criterio","Puntuación","Criterio","Puntuación",null,null,null,null,null,null,null,"demanda",0,3,6,10]
["SENESCYT-001-01-01","Registro de carreras y programas en estado no vigente y de cuarto nivel",3,0,5,30,0,"NO",{"$f":"IF(H4=\"SI\",20,0)","v":0},"NO",{"$f":"IF(J4=\"SI\",20,0)","v":0},"NO",{"$f":"IF(L4=\"SI\",20,0)","v":0},{"$f":"SUM(C4+D4+E4+F4+G4+I4+K4+M4)","v":38},null,null,null,null,null,null,"quejas",0,4,10]
["SENESCYT-001-02-01","Registro de títulos históricos",6,10,5,30,0,"NO",0,"NO",0,"NO",0,{"$f":"SUM(C5+D5+E5+F5+G5+I5+K5+M5)","v":51},null,null,null,null,null,null,"cpa",5,10,20]
["SENESCYT-002-01-01","Reconocimiento general de títulos del extranjero",10,10,5,30,10,"NO",0,"NO",0,"NO",0,65,null,null,null,null,null,null,"tr",0,30]
["SENESCYT-002-01-02","Reconocimiento de títulos profesionales o grados académicos en el campo de la salud",10,4,5,30,10,"NO",0,"NO",0,"NO",0,59,null,null,null,null,null,null,"ca",0,10]
["SENESCYT-002-01-03","Reconocimiento de títulos doctorales del extrajero (PhD.)",10,4,5,30,10,"NO",0,"NO",0,"NO",0,59,null,null,null,null,null,null,null,"SI","NO"]
["SENESCYT-003-01-01","Certificación de acreditación de las instituciones de educación superior nacionales",10,4,0,0,0,"NO",0,"NO",0,"NO",0,14]
["SENESCYT-004-01-01","Modificación de registro de títulos nacionales de Instituciones de Educación Superior cerradas",3,10,5,30,0,"NO",0,"NO",0,"NO",0,48]
["SENESCYT-004-01-02","Modificación del nivel de formación de los títulos de tecnólogos médicos al tercer nivel y de doctores al cuarto nivel",3,10,10,30,0,"NO",0,"NO",0,"NO",0,53]
["SENESCYT-004-02-01","Modificación de registro de títulos extranjero para PhD",3,0,10,30,0,"NO",0,"NO",0,"NO",0,43]
["SENESCYT-004-02-02","Modificación de registro de títulos extranjero de títulos propios",6,0,5,30,0,"NO",0,"NO",0,"NO",0,41]
["SENESCYT-004-02-03","Modificación de registro de títulos extranjero de campos de información académica general",6,10,5,30,0,"NO",0,"NO",0,"NO",0,51]
["SENESCYT-004-02-04","Modificación de registro de títulos extranjero de campos de información personal",10,10,5,30,0,"NO",0,"NO",0,"NO",0,55]
["SENESCYT-005-01-01","Anulaciones de registro de títulos nacionales",6,10,10,30,0,"NO",0,"NO",0,"NO",0,56]
["SENESCYT-005-02-01","Anulaciones de registro de títulos del extranjero",3,0,20,30,0,"NO",0,"NO",0,"NO",0,53]
["SENESCYT-006-01-01","Modificación de datos de carreras y programas de estudio",3,10,20,30,0,"NO",0,"NO",0,"NO",0,63]
["SENESCYT-007-01-01","Exoneración de derechos aduaneros para instituciones de educación superior",3,0,20,30,0,"NO",0,"NO",0,"NO",0,53]
["SENESCYT-008-01-01","Evaluación de IES extranjeras para inclusión o exclusión en el listado",3,10,20,30,0,"NO",0,"NO",0,"NO",0,63]
["SENESCYT-009-01-01","Hojas de vida de becarios para procesos de selección",10,4,5,30,0,"NO",0,"NO",0,"NO",0,49]
["SENESCYT-010-01-01","Vinculación de becarios a la plataforma de transferencia del conocimiento \"Ensamble\"",10,0,5,0,0,"NO",0,"NO",0,"NO",0,15]
["SENESCYT-010-02-01","Registro de empresas públicas y privadas en la plataforma de transferencia del conocimiento \"Ensamble\"",6,0,5,0,0,"NO",0,"NO",0,"NO",0,11]
["SENESCYT-011-01-01","Acreditación de investigadores/as científicos/as",10,4,20,30,0,"NO",0,"NO",0,"NO",0,64]
["SENESCYT-012-01-01","Categorización como Investigador Principal 4",3,0,20,30,0,"NO",0,"NO",0,"NO",0,53]
["SENESCYT-012-01-02","Categorización como Investigador Principal 3",3,0,20,30,0,"NO",0,"NO",0,"NO",0,53]
["SENESCYT-012-01-03","Categorización como Investigador Principal 2",3,0,20,30,0,"NO",0,"NO",0,"NO",0,53]
["SENESCYT-012-01-04","Categorización como Investigador Agregado 3",0,0,20,30,0,"NO",0,"NO",0,"NO",0,50]
["SENESCYT-012-01-05","Categorización como Investigador Agregado 2",6,0,20,30,0,"NO",0,"NO",0,"NO",0,56]
["SENESCYT-012-01-06","Categorización como Investigador Agregado 1",6,0,20,30,0,"NO",0,"NO",0,"NO",0,56]
["SENESCYT-012-01-07","Categorización como Investigador Auxiliar 2",6,0,20,30,0,"NO",0,"NO",0,"NO",0,56]
["SENESCYT-012-01-08","Categorización como Investigador Auxiliar 1",6,0,20,30,0,"NO",0,"NO",0,"NO",0,56]
["SENESCYT-012-01-09","Categorización como Investigador Principal 1",3,0,20,30,0,"NO",0,"NO",0,"NO",0,53]
["SENESCYT-013-01-01","Asignación del código ISSN (International Standard Serial Number)",6,0,10,30,0,"NO",0,"NO",0,"NO",0,46]
["SENESCYT-013-01-02","Actualización de información del código ISSN",6,0,20,30,0,"NO",0,"NO",0,"NO",0,56]
["SENESCYT-014-01-01","Evaluación o revaluación Latindex para publicaciones científicas",6,0,10,30,0,"NO",0,"NO",0,"NO",0,46]
["SENESCYT-014-01-02","Actualización de información de la publicación Latindex",6,0,20,30,0,"NO",0,"NO",0,"NO",0,56]
["SENESCYT-017-01-01","Postulación de proyectos innovadores y la asignación de capital semilla",0,0,20,30,0,"NO",0,"NO",0,"NO",0,50]
["SENESCYT-018-01-01","Acreditación de espacios y agentes de innovación",6,10,5,30,0,"NO",0,"NO",0,"NO",0,51]
["SENESCYT-019-01-01","Registro de espacios de trabajo colaborativo",3,0,5,30,0,"NO",0,"NO",0,"NO",0,38]
["SENESCYT-020-01-01","Obtención de cupos para el acceso a la educación superior para ecuatorianos residentes y no residentes en el país y para extranjeros residentes en el país",10,4,20,30,0,"NO",0,"NO",0,"NO",0,64]
["SENESCYT-021-01-01","Certificado de notas obtenidas en el examen para el acceso a la educación superior",10,4,0,0,0,"NO",0,"NO",0,"NO",0,14]
["SENESCYT-021-01-02","Certificado de haber aceptado o no haber aceptado un cupo en el Sistema Nacional de Nivelación y Admisión",10,4,0,0,0,"NO",0,"NO",0,"NO",0,14]
["SENESCYT-021-01-03","Certificado de pertenencia al grupo de alto rendimiento (GAR) programa internacional",3,0,5,0,0,"NO",0,"NO",0,"NO",0,8]
["SENESCYT-022-01-01","Habilitación de cuenta en plataforma \"Ser Bachiller\"",10,4,5,30,0,"NO",0,"NO",0,"NO",0,49]
["SENESCYT-022-01-02","Habilitación de nota en plataforma \"Ser Bachiller\"",10,4,5,30,0,"NO",0,"NO",0,"NO",0,49]
["SENESCYT-023-01-01","Inscripción para el acceso a la nivelación general",0,0,0,0,0,"NO",0,"NO",0,"NO",0,0]
["SENESCYT-024-01-01","Emisión de títulos de formación técnica y tecnológica de instituciones públicas o particulares",3,10,10,30,0,"NO",0,"NO",0,"NO",0,53]
["SENESCYT-024-01-02","Certificado de títulos en proceso de emisión de formación técnica y tecnológica de instituciones públicas o particulares",10,0,5,30,0,"NO",0,"NO",0,"NO",0,45]
["SENESCYT-025-01-01","Creación de credenciales para Instituciones de Educación Superior (IES)",6,0,20,30,0,"NO",0,"NO",0,"NO",0,56]
["SENESCYT-025-01-02","Actualización de datos generales para el registro de firmas de las autoridades de las Instituciones de Educación Superior.",6,0,10,0,0,"NO",0,"NO",0,"NO",0,16]
["SENESCYT-026-01-01","Atención de solicitudes de acceso a la información pública referente a la educación superior, la ciencia, tecnología e innovación",6,10,5,30,0,"NO",0,"NO",0,"NO",0,51]
["SENESCYT-027-01-01","Registro de Redes del Sistema de Educación Superior y del Sistema Nacional de Ciencia, Tecnología, Innovación y Saberes Ancestrales",6,0,5,0,0,"NO",0,"NO",0,"NO",0,11]
["SENESCYT-028-01-01","Registro de personas naturales relacionadas a la investigación y/o desarrollo tecnológico",10,0,20,30,0,"NO",0,"NO",0,"NO",0,60]
["SENESCYT-034-01-01","Aprobación de liquidación de becas nacionales e internacionales",10,4,10,30,0,"NO",{"$f":"IF(H55=\"SI\",20,0)","v":0},"NO",{"$f":"IF(J55=\"SI\",20,0)","v":0},"NO",{"$f":"IF(L55=\"SI\",20,0)","v":0},54]
["SENESCYT-034-01-02","Aprobación de facilidades de pago a valores adeudados para beneficiarios de becas educativas",3,10,5,30,0,"NO",0,"NO",0,"NO",0,48]
["SENESCYT-035-01-01","Autorización de registro de compensación becas internacionales y administración becas otorgadas por el ministerio de salud pública",10,0,5,30,0,"NO",0,"NO",0,"NO",0,45]
["SENESCYT-035-01-02","Autorización de cambio o liberación de la entidad auspiciante de becas internacionales",3,0,10,30,10,"NO",0,"NO",0,"NO",0,53]
["SENESCYT-035-01-03","Autorización de diferimiento del período de compensación de becas",6,0,10,30,10,"NO",0,"NO",0,"NO",0,56]
["SENESCYT-035-01-04","Autorización de cambio de período de compensación y otros tipos de compensación para beneficiarios de becas educativas ",6,0,10,30,10,"NO",0,"NO",0,"NO",0,56]
["SENESCYT-035-01-05","Autorización de prórroga de plazo para ejecución de proyecto para beneficiarios de becas",0,0,10,30,10,"NO",0,"NO",0,"NO",0,50]
["SENESCYT-036-01-01","Aprobación de facilidades de pago en etapa coactiva",10,0,5,0,10,"NO",0,"NO",0,"NO",0,25]
["SENESCYT-037-01-01","Emisión de certificados relacionados con crédito educativo",10,0,0,0,0,"NO",0,"NO",0,"NO",0,10]
["SENESCYT-037-01-02","Otorgamiento de información académica de crédito educativo ",10,0,5,0,0,"NO",0,"NO",0,"NO",0,15]
["SENESCYT-038-01-01","Emisión de reportes académicos de crédito educativo",10,0,5,0,0,"NO",0,"NO",0,"NO",0,15]
["SENESCYT-039-01-01","Aprobación de desembolso, reembolso o adelanto de desembolso  de crédito educativo ",6,10,5,0,0,"NO",0,"NO",0,"NO",0,21]
["SENESCYT-040-01-01","Otorgamiento de prórroga académica por crédito educativo",3,0,5,0,0,"NO",0,"NO",0,"NO",0,8]
["SENESCYT-040-01-02","Aprobación resolución de actualización de datos de la persona beneficiaria de crédito educativo",0,0,5,0,0,"NO",0,"NO",0,"NO",0,5]
["SENESCYT-040-01-03","Aprobación resolución de suspensión de desembolsos de crédito educativo",3,0,5,30,0,"NO",0,"NO",0,"NO",0,{"$f":"SUM(C69+D69+E69+F69+G69+I69+K69+M69)","v":38}]
["SENESCYT-040-01-04","Aprobación resolución de terminación del contrato de crédito educativo ",6,0,5,0,0,"NO",0,"NO",0,"NO",0,11]
["SENESCYT-041-01-01","Aprobación de legalización de contrato de becas nacionales e internacionales",10,0,5,0,10,"NO",0,"NO",0,"NO",0,25]
["SENESCYT-042-01-01","Aprobación de postulación a becas nacionales e internacionales",10,4,10,30,0,"NO",0,"NO",0,"NO",0,54]
["SENESCYT-043-01-01","Autorización de desembolso de becas nacionales e internacionales a partir de segundo pago",10,0,5,30,0,"NO",0,"NO",0,"NO",0,45]
["SENESCYT-044-01-01","Aprobación de cambio de condiciones contractuales  de beca nacional o internacional",6,0,10,30,10,"NO",0,"NO",0,"NO",0,56]
["SENESCYT-044-01-02","Autorización de cambio de condiciones contractuales antes de la firma de beca ",3,0,10,30,10,"NO",0,"NO",0,"NO",0,53]
["SENESCYT-044-01-03","Aprobación de resolución a la solicitud de renuncia a la beca educativa (contrato suscrito sin desembolsos)",3,0,5,30,0,"NO",0,"NO",0,"NO",0,38]
["SENESCYT-044-02-01","Autorización de prórroga de plazo de estudios para beneficiarios de becas educativas",6,0,10,30,10,"NO",0,"NO",0,"NO",0,56]
["SENESCYT-044-02-02","Aprobación resolución de reactivación de beca educativa",3,0,10,30,10,"NO",0,"NO",0,"NO",0,53]
["SENESCYT-044-02-03","Aprobación resolución a la solicitud de terminación de contrato de becas",3,0,5,30,0,"NO",0,"NO",0,"NO",0,38]
["SENESCYT-044-02-04","Aprobación resolución a la solicitud de suspensión temporal de estudios para beneficiarios de becas ",3,0,10,30,10,"NO",0,"NO",0,"NO",0,53]
["SENESCYT-045-01-01","Emisión de certificado de ser beneficiario de becas nacionales e internacionales",10,0,0,0,0,"NO",0,"NO",0,"NO",0,10]
["SENESCYT-045-02-01","Atención a la solicitud de apelación al resultado de la postulación de becas nacionales e internacionales",0,0,5,30,10,"NO",0,"NO",0,"NO",0,45]